{"text_format":"1","workbook":"xlsx","n_sheets":4,"sheets":["基本データ","請求書用紙 (注文外)","内訳書","マクロ構文（注文外）"],"not_rendered":{"charts":0,"images":0,"macros":1,"external_links":0,"defined_names":2,"comments":1,"pivot_tables":0},"unopened":[],"bounds":{"document_bytes":16777216,"sheet_cells":100000,"rows_first":2000,"rows_last":500,"rows_between":2000,"halvings":0,"cell_chars":16384,"cell_head_chars":4096},"cells_cut":0,"cells_raw":0,"read":"whole","date_system":"1900"}

{"sheet":"基本データ","index":0,"n_rows":14,"n_cols":9,"rows_kept":14,"cut":false,"hidden":false,"merged":[[9,6,9,7],[10,6,10,7],[11,6,11,7],[12,6,12,7],[13,6,13,7],[8,6,8,7],[3,6,3,7],[4,6,4,7],[5,6,5,7],[6,6,6,7],[7,6,7,7]]}
[]
[]
[null,"請求期間：",null,null,null,"業者情報："]
[null,"自：",null,null,null,"会社名："]
[null,"至：",null,null,null,"代表者名："]
[null,null,null,null,null,"請求先住所："]
[null,null,null,null,null,"電話番号："]
[null,null,null,null,null,"インボイス登録番号：",null,null,"※Tから入力お願い致します。"]
[null,"工事件名：",null,null,null,"銀行名："]
[null,"工事番号：",null,null,null,"支店名："]
[null,null,null,null,null,"口座種別："]
[null,null,null,null,null,"口座番号："]
[null,null,null,null,null,"口座名義フリガナ："]
[null,null,null,null,null,"口座名義："]

{"sheet":"請求書用紙 (注文外)","index":1,"n_rows":73,"n_cols":68,"rows_kept":73,"cut":false,"hidden":false,"merged":[[22,11,22,32],[23,11,23,32],[22,49,22,56],[23,49,23,56],[21,0,21,3],[16,4,16,10],[17,4,17,10],[16,33,16,40],[15,41,15,48],[16,41,16,48],[17,41,17,48],[16,49,16,56],[17,49,17,56],[18,49,18,56],[19,49,19,56],[20,49,20,56],[21,49,21,56],[16,0,16,3],[17,0,17,3],[18,0,18,3],[19,0,19,3],[20,0,20,3],[22,4,22,10],[23,4,23,10],[15,33,15,40],[17,33,17,40],[18,33,18,40],[19,33,19,40],[20,33,20,40],[21,33,21,40],[15,11,15,32],[16,11,16,32],[17,11,17,32],[18,11,18,32],[19,11,19,32],[20,11,20,32],[21,11,21,32],[0,0,0,56],[1,44,1,56],[2,44,2,56],[4,37,5,56],[7,3,8,10],[7,14,8,32],[7,37,7,56],[8,37,8,56],[15,4,15,10],[9,17,10,32],[9,37,9,56],[10,42,10,56],[11,35,14,36],[11,37,11,44],[11,51,11,56],[12,37,12,44],[12,51,12,56],[13,41,13,56],[14,41,14,56],[10,35,10,41],[15,49,15,56],[9,8,9,16],[7,0,7,2],[15,0,15,3],[25,4,25,10],[27,41,27,47],[22,33,22,40],[23,33,23,40],[24,33,24,40],[25,33,25,40],[18,4,18,10],[19,4,19,10],[20,4,20,10],[21,4,21,10],[18,41,18,48],[19,41,19,48],[20,41,20,48],[21,41,21,48],[26,0,26,32],[24,11,24,32],[25,11,25,32],[22,0,22,3],[23,0,23,3],[24,0,24,3],[25,0,25,3],[22,41,22,48],[23,41,23,48],[24,4,24,10],[26,49,26,56],[25,41,25,48],[26,41,26,48],[24,49,24,56],[25,49,25,56],[26,33,26,40],[35,41,35,46],[35,47,35,56],[31,45,33,48],[31,49,33,52],[31,53,33,56],[34,41,34,48],[34,49,34,52],[34,53,34,56],[28,41,28,47],[31,41,33,44],[30,53,30,56],[30,49,30,52],[30,45,30,48],[30,41,30,44],[27,49,27,56],[28,49,28,56],[24,41,24,48]]}
["請求書（注文外分）"]
[null,null,null,null,null,null,null,null,null,null,null,null,null,null,null,null,null,null,null,null,null,null,null,null,null,null,null,null,null,null,null,null,null,null,null,"請求期間",null,null,null,null,null,null,"自：",null,{"$f":"基本データ!C4","v":"00:00:00"},null,null,null,null,null,null,null,null,null,null,null,null,null,null,null,null,null,null,null,null,null,"↓科目コードと摘要用（非表示）"]
[null,null,null,null,null,null,null,null,null,null,null,null,null,null,null,null,null,null,null,null,null,null,null,null,null,null,null,null,null,null,null,null,null,null,null,null,null,null,null,null,null,null,"至：",null,{"$f":"基本データ!C5","v":"00:00:00"},null,null,null,null,null,null,null,null,null,null,null,null,null,null,null,null,null,null,null,null,null,"科目コード","摘出"]
[null,null,null,null,null,null,null,null,null,null,null,null,null,null,null,null,null,null,null,null,null,null,null,null,null,null,null,null,null,null,null,null,null,null,null,"住所",null,null,null,null,null,null,null,null,null,null,null,null,null,null,null,null,null,null,null,null,null,null,null,null,null,null,null,null,null,null,"0101","準備費"]
["株式会社リンク・トラスト　御中",null,null,null,null,null,null,null,null,null,null,null,null,null,null,null,null,null,null,null,null,null,null,null,null,null,null,null,null,null,null,null,null,null,null,null,null,{"$f":"基本データ!G6","v":0},null,null,null,null,null,null,null,null,null,null,null,null,null,null,null,null,null,null,null,null,null,null,null,null,null,null,null,null,"0102","仮設物費"]
[null,null,null,null,null,null,null,null,null,null,null,null,null,null,null,null,null,null,null,null,null,null,null,null,null,null,null,null,null,null,null,null,null,null,null,null,null,null,null,null,null,null,null,null,null,null,null,null,null,null,null,null,null,null,null,null,null,null,null,null,null,null,null,null,null,null,"0103","安全費"]
[null,null,null,null,null,null,null,null,null,null,null,null,null,null,null,null,null,null,null,null,null,null,null,null,null,null,null,null,null,null,null,null,null,null,null,"取引先名",null,null,null,null,null,null,null,null,null,null,null,null,null,null,null,null,null,null,null,"印",null,null,null,null,null,null,null,null,null,null,"0104","動力用水光熱費"]
["工事No",null,null,{"$f":"基本データ!C10","v":0},null,null,null,null,null,null,null,"工事名",null,null,{"$f":"基本データ!C9","v":0},null,null,null,null,null,null,null,null,null,null,null,null,null,null,null,null,null,null,null,null,null,null,{"$f":"基本データ!G4","v":0},null,null,null,null,null,null,null,null,null,null,null,null,null,null,null,null,null,null,null,null,null,null,null,null,null,null,null,null,"0105","試験調査費"]
[null,null,null,null,null,null,null,null,null,null,null,null,null,null,null,null,null,null,null,null,null,null,null,null,null,null,null,null,null,null,null,null,null,null,null,null,null,{"$f":"基本データ!G5","v":0},null,null,null,null,null,null,null,null,null,null,null,null,null,null,null,null,null,null,null,null,null,null,null,null,null,null,null,null,"0106","機械器具費"]
[null,null,null,null,null,null,null,null,"今回請求金額（税込）",null,null,null,null,null,null,null,null,{"$f":"AX29","v":0},null,null,null,null,null,null,null,null,null,null,null,null,null,null,null,null,null,"電話",null,{"$f":"基本データ!G7","v":0},null,null,null,null,null,null,null,null,null,null,null,null,null,null,null,null,null,null,null,null,null,null,null,null,null,null,null,null,"0107","運搬費"]
[null,null,null,null,null,null,null,null,null,null,null,null,null,null,null,null,null,null,null,null,null,null,null,null,null,null,null,null,null,null,null,null,null,null,null,"インボイス登録番号",null,null,null,null,null,null,{"$f":"基本データ!G8","v":0},null,null,null,null,null,null,null,null,null,null,null,null,null,null,null,null,null,null,null,null,null,null,null,"0110","遣り方"]
[null,null,null,null,null,null,null,null,null,null,null,null,null,null,null,null,null,null,null,null,null,null,null,null,null,null,null,null,null,null,null,null,null,null,null,"振込先",null,{"$f":"基本データ!G9","v":0},null,null,null,null,null,null,null,"銀行",null,"口座種別",null,null,null,{"$f":"基本データ!G11","v":0},null,null,null,null,null,null,null,null,null,null,null,null,null,null,"0111","墨出し・現寸"]
[null,null,null,null,null,null,null,null,null,null,null,null,null,null,null,null,null,null,null,null,null,null,null,null,null,null,null,null,null,null,null,null,null,null,null,null,null,{"$f":"基本データ!G10","v":0},null,null,null,null,null,null,null,"支店",null,"口座番号",null,null,null,{"$f":"基本データ!G12","v":0},null,null,null,null,null,null,null,null,null,null,null,null,null,null,"0112","外部足場"]
[null,null,null,null,null,null,null,null,null,null,null,null,null,null,null,null,null,null,null,null,null,null,null,null,null,null,null,null,null,null,null,null,null,null,null,null,null,"フリガナ",null,null,null,{"$f":"基本データ!G13","v":0},null,null,null,null,null,null,null,null,null,null,null,null,null,null,null,null,null,null,null,null,null,null,null,null,"0113","内部足場"]
[null,null,null,null,null,null,null,null,null,null,null,null,null,null,null,null,null,null,null,null,null,null,null,null,null,null,null,null,null,null,null,null,null,null,null,null,null,"口座名義",null,null,null,{"$f":"基本データ!G14","v":0},null,null,null,null,null,null,null,null,null,null,null,null,null,null,null,null,null,null,null,null,null,null,null,null,"0114","災害防止"]
["内訳書ｺｰﾄﾞ",null,null,null,"科目コード",null,null,null,null,null,null,"工種名・摘要",null,null,null,null,null,null,null,null,null,null,null,null,null,null,null,null,null,null,null,null,null,"金額①",null,null,null,null,null,null,null,"値引き②",null,null,null,null,null,null,null,"①-②",null,null,null,null,null,null,null,null,null,null,null,null,null,null,null,null,"0115","仮設雑費"]
[1,null,null,null,null,null,null,null,null,null,null,{"$f":"IFERROR(VLOOKUP($E17,$BO$4:$BP$73,2,FALSE),\"\")","v":""},null,null,null,null,null,null,null,null,null,null,null,null,null,null,null,null,null,null,null,null,null,{"$f":"IF(SUM(内訳書!A5:A1003)=0,SUM(内訳書!U5:X1003),SUMIF(内訳書!A:A,A17,内訳書!U:X))","v":0},null,null,null,null,null,null,null,null,null,null,null,null,null,null,null,{"$f":"AH17+AP17","v":0},null,null,null,null,null,null,null,null,null,null,null,null,null,null,null,null,"0116","養生"]
[2,null,null,null,null,null,null,null,null,null,null,{"$f":"IFERROR(VLOOKUP($E18,$BO$4:$BP$73,2,FALSE),\"\")","v":""},null,null,null,null,null,null,null,null,null,null,null,null,null,null,null,null,null,null,null,null,null,{"$f":"SUMIF(内訳書!A:A,A18,内訳書!U:X)","v":0},null,null,null,null,null,null,null,null,null,null,null,null,null,null,null,0,null,null,null,null,null,null,null,null,null,null,null,null,null,null,null,null,"0117","整理清掃"]
[3,null,null,null,null,null,null,null,null,null,null,{"$f":"IFERROR(VLOOKUP($E19,$BO$4:$BP$73,2,FALSE),\"\")","v":""},null,null,null,null,null,null,null,null,null,null,null,null,null,null,null,null,null,null,null,null,null,{"$f":"SUMIF(内訳書!A:A,A19,内訳書!U:X)","v":0},null,null,null,null,null,null,null,null,null,null,null,null,null,null,null,0,null,null,null,null,null,null,null,null,null,null,null,null,null,null,null,null,"0118","運搬費"]
[4,null,null,null,null,null,null,null,null,null,null,{"$f":"IFERROR(VLOOKUP($E20,$BO$4:$BP$73,2,FALSE),\"\")","v":""},null,null,null,null,null,null,null,null,null,null,null,null,null,null,null,null,null,null,null,null,null,{"$f":"SUMIF(内訳書!A:A,A20,内訳書!U:X)","v":0},null,null,null,null,null,null,null,null,null,null,null,null,null,null,null,0,null,null,null,null,null,null,null,null,null,null,null,null,null,null,null,null,"0119","専用仮設"]
[5,null,null,null,null,null,null,null,null,null,null,{"$f":"IFERROR(VLOOKUP($E21,$BO$4:$BP$73,2,FALSE),\"\")","v":""},null,null,null,null,null,null,null,null,null,null,null,null,null,null,null,null,null,null,null,null,null,{"$f":"SUMIF(内訳書!A:A,A21,内訳書!U:X)","v":0},null,null,null,null,null,null,null,null,null,null,null,null,null,null,null,0,null,null,null,null,null,null,null,null,null,null,null,null,null,null,null,null,"0120","近隣対応工事"]
[6,null,null,null,null,null,null,null,null,null,null,{"$f":"IFERROR(VLOOKUP($E22,$BO$4:$BP$73,2,FALSE),\"\")","v":""},null,null,null,null,null,null,null,null,null,null,null,null,null,null,null,null,null,null,null,null,null,{"$f":"SUMIF(内訳書!A:A,A22,内訳書!U:X)","v":0},null,null,null,null,null,null,null,null,null,null,null,null,null,null,null,0,null,null,null,null,null,null,null,null,null,null,null,null,null,null,null,null,"0200","土工事"]
[7,null,null,null,null,null,null,null,null,null,null,{"$f":"IFERROR(VLOOKUP($E23,$BO$4:$BP$73,2,FALSE),\"\")","v":""},null,null,null,null,null,null,null,null,null,null,null,null,null,null,null,null,null,null,null,null,null,{"$f":"SUMIF(内訳書!A:A,A23,内訳書!U:X)","v":0},null,null,null,null,null,null,null,null,null,null,null,null,null,null,null,0,null,null,null,null,null,null,null,null,null,null,null,null,null,null,null,null,"0300","地業工事"]
[8,null,null,null,null,null,null,null,null,null,null,{"$f":"IFERROR(VLOOKUP($E24,$BO$4:$BP$73,2,FALSE),\"\")","v":""},null,null,null,null,null,null,null,null,null,null,null,null,null,null,null,null,null,null,null,null,null,{"$f":"SUMIF(内訳書!A:A,A24,内訳書!U:X)","v":0},null,null,null,null,null,null,null,null,null,null,null,null,null,null,null,0,null,null,null,null,null,null,null,null,null,null,null,null,null,null,null,null,"0400","コンクリート工事"]
[9,null,null,null,null,null,null,null,null,null,null,{"$f":"IFERROR(VLOOKUP($E25,$BO$4:$BP$73,2,FALSE),\"\")","v":""},null,null,null,null,null,null,null,null,null,null,null,null,null,null,null,null,null,null,null,null,null,{"$f":"SUMIF(内訳書!A:A,A25,内訳書!U:X)","v":0},null,null,null,null,null,null,null,null,null,null,null,null,null,null,null,0,null,null,null,null,null,null,null,null,null,null,null,null,null,null,null,null,"0500","型枠工事"]
[10,null,null,null,null,null,null,null,null,null,null,{"$f":"IFERROR(VLOOKUP($E26,$BO$4:$BP$73,2,FALSE),\"\")","v":""},null,null,null,null,null,null,null,null,null,null,null,null,null,null,null,null,null,null,null,null,null,{"$f":"SUMIF(内訳書!A:A,A26,内訳書!U:X)","v":0},null,null,null,null,null,null,null,null,null,null,null,null,null,null,null,0,null,null,null,null,null,null,null,null,null,null,null,null,null,null,null,null,"0600","鉄筋工事"]
["合計",null,null,null,null,null,null,null,null,null,null,null,null,null,null,null,null,null,null,null,null,null,null,null,null,null,null,null,null,null,null,null,null,{"$f":"SUM(AH17:AO26)","v":0},null,null,null,null,null,null,null,{"$f":"SUM(AP17:AW26)","v":0},null,null,null,null,null,null,null,{"$f":"SUM(AX17:BE26)","v":0},null,null,null,null,null,null,null,null,null,null,null,null,null,null,null,null,"0700","鉄骨工事"]
[null,null,null,null,null,null,null,null,null,null,null,null,null,null,null,null,null,null,null,null,null,null,null,null,null,null,null,null,null,null,null,null,null,null,null,null,null,null,null,null,null,"非課税対象",null,null,null,null,null,null,null,{"$f":"AX27","v":0},null,null,null,null,null,null,null,null,null,null,null,null,null,null,null,null,"0800","組積工事"]
[null,null,null,null,null,null,null,null,null,null,null,null,null,null,null,null,null,null,null,null,null,null,null,null,null,null,null,null,null,null,null,null,null,null,null,null,null,null,null,null,null,"請求金額",null,null,null,null,null,null,null,{"$f":"SUM(AX28:BE28)","v":0},null,null,null,null,null,null,null,null,null,null,null,null,null,null,null,null,"0900","防水工事"]
["備考",null,null,null,null,null,null,null,null,null,null,null,null,null,null,null,null,null,null,null,null,null,null,null,null,null,null,null,null,null,null,null,null,null,null,null,null,null,null,null,null,null,null,null,null,null,null,null,null,null,null,null,null,null,null,null,null,null,null,null,null,null,null,null,null,null,"1000","石工事"]
[null,null,null,null,null,null,null,null,null,null,null,null,null,null,null,null,null,null,null,null,null,null,null,null,null,null,null,null,null,null,null,null,null,null,null,null,null,null,null,null,null,"社長印",null,null,null,"部長印",null,null,null,"統括印",null,null,null,"所長印",null,null,null,null,null,null,null,null,null,null,null,null,"1100","タイル工事"]
[null,null,null,null,null,null,null,null,null,null,null,null,null,null,null,null,null,null,null,null,null,null,null,null,null,null,null,null,null,null,null,null,null,null,null,null,null,null,null,null,null,null,null,null,null,null,null,null,null,null,null,null,null,null,null,null,null,null,null,null,null,null,null,null,null,null,"1200","木工事"]
[null,null,null,null,null,null,null,null,null,null,null,null,null,null,null,null,null,null,null,null,null,null,null,null,null,null,null,null,null,null,null,null,null,null,null,null,null,null,null,null,null,null,null,null,null,null,null,null,null,null,null,null,null,null,null,null,null,null,null,null,null,null,null,null,null,null,"1300","金属工事"]
[null,null,null,null,null,null,null,null,null,null,null,null,null,null,null,null,null,null,null,null,null,null,null,null,null,null,null,null,null,null,null,null,null,null,null,null,null,null,null,null,null,null,null,null,null,null,null,null,null,null,null,null,null,null,null,null,null,null,null,null,null,null,null,null,null,null,"1400","左官工事"]
[null,null,null,null,null,null,null,null,null,null,null,null,null,null,null,null,null,null,null,null,null,null,null,null,null,null,null,null,null,null,null,null,null,null,null,null,null,null,null,null,null,"立替",null,null,null,null,null,null,null,"有",null,null,null,"無",null,null,null,null,null,null,null,null,null,null,null,null,"1500","木製建具工事"]
[null,null,null,null,null,null,null,null,null,null,null,null,null,null,null,null,null,null,null,null,null,null,null,null,null,null,null,null,null,null,null,null,null,null,null,null,null,null,null,null,null,"査定連番",null,null,null,null,null,null,null,null,null,null,null,null,null,null,null,null,null,null,null,null,null,null,null,null,"1600","金属建具工事"]
[null,null,null,null,null,null,null,null,null,null,null,null,null,null,null,null,null,null,null,null,null,null,null,null,null,null,null,null,null,null,null,null,null,null,null,null,null,null,null,null,null,null,null,null,null,null,null,null,null,null,null,null,null,null,null,null,null,null,null,null,null,null,null,null,null,null,"1700","ガラス工事"]
[null,null,null,null,null,null,null,null,null,null,null,null,null,null,null,null,null,null,null,null,null,null,null,null,null,null,null,null,null,null,null,null,null,null,null,null,null,null,null,null,null,null,null,null,null,null,null,null,null,null,null,null,null,null,null,null,null,null,null,null,null,null,null,null,null,null,"1800","塗装工事"]
[null,null,null,null,null,null,null,null,null,null,null,null,null,null,null,null,null,null,null,null,null,null,null,null,null,null,null,null,null,null,null,null,null,null,null,null,null,null,null,null,null,null,null,null,null,null,null,null,null,null,null,null,null,null,null,null,null,null,null,null,null,null,null,null,null,null,"1900","内外装工事"]
[null,null,null,null,null,null,null,null,null,null,null,null,null,null,null,null,null,null,null,null,null,null,null,null,null,null,null,null,null,null,null,null,null,null,null,null,null,null,null,null,null,null,null,null,null,null,null,null,null,null,null,null,null,null,null,null,null,null,null,null,null,null,null,null,null,null,"2000","仕上ﾕﾆｯﾄ工事"]
[null,null,null,null,null,null,null,null,null,null,null,null,null,null,null,null,null,null,null,null,null,null,null,null,null,null,null,null,null,null,null,null,null,null,null,null,null,null,null,null,null,null,null,null,null,null,null,null,null,null,null,null,null,null,null,null,null,null,null,null,null,null,null,null,null,null,"2100","その他工事"]
[null,null,null,null,null,null,null,null,null,null,null,null,null,null,null,null,null,null,null,null,null,null,null,null,null,null,null,null,null,null,null,null,null,null,null,null,null,null,null,null,null,null,null,null,null,null,null,null,null,null,null,null,null,null,null,null,null,null,null,null,null,null,null,null,null,null,"3000","電気設備工事"]
[null,null,null,null,null,null,null,null,null,null,null,null,null,null,null,null,null,null,null,null,null,null,null,null,null,null,null,null,null,null,null,null,null,null,null,null,null,null,null,null,null,null,null,null,null,null,null,null,null,null,null,null,null,null,null,null,null,null,null,null,null,null,null,null,null,null,"3100","機械設備工事"]
[null,null,null,null,null,null,null,null,null,null,null,null,null,null,null,null,null,null,null,null,null,null,null,null,null,null,null,null,null,null,null,null,null,null,null,null,null,null,null,null,null,null,null,null,null,null,null,null,null,null,null,null,null,null,null,null,null,null,null,null,null,null,null,null,null,null,"3300","昇降設備工事"]
[null,null,null,null,null,null,null,null,null,null,null,null,null,null,null,null,null,null,null,null,null,null,null,null,null,null,null,null,null,null,null,null,null,null,null,null,null,null,null,null,null,null,null,null,null,null,null,null,null,null,null,null,null,null,null,null,null,null,null,null,null,null,null,null,null,null,"3400","その他設備工事"]
[null,null,null,null,null,null,null,null,null,null,null,null,null,null,null,null,null,null,null,null,null,null,null,null,null,null,null,null,null,null,null,null,null,null,null,null,null,null,null,null,null,null,null,null,null,null,null,null,null,null,null,null,null,null,null,null,null,null,null,null,null,null,null,null,null,null,"4000","外構工事"]
[null,null,null,null,null,null,null,null,null,null,null,null,null,null,null,null,null,null,null,null,null,null,null,null,null,null,null,null,null,null,null,null,null,null,null,null,null,null,null,null,null,null,null,null,null,null,null,null,null,null,null,null,null,null,null,null,null,null,null,null,null,null,null,null,null,null,"4100","解体工事"]
[null,null,null,null,null,null,null,null,null,null,null,null,null,null,null,null,null,null,null,null,null,null,null,null,null,null,null,null,null,null,null,null,null,null,null,null,null,null,null,null,null,null,null,null,null,null,null,null,null,null,null,null,null,null,null,null,null,null,null,null,null,null,null,null,null,null,"4200","改修工事"]
[null,null,null,null,null,null,null,null,null,null,null,null,null,null,null,null,null,null,null,null,null,null,null,null,null,null,null,null,null,null,null,null,null,null,null,null,null,null,null,null,null,null,null,null,null,null,null,null,null,null,null,null,null,null,null,null,null,null,null,null,null,null,null,null,null,null,"4300","建築一括工事"]
[null,null,null,null,null,null,null,null,null,null,null,null,null,null,null,null,null,null,null,null,null,null,null,null,null,null,null,null,null,null,null,null,null,null,null,null,null,null,null,null,null,null,null,null,null,null,null,null,null,null,null,null,null,null,null,null,null,null,null,null,null,null,null,null,null,null,"4400","その後工事"]
[null,null,null,null,null,null,null,null,null,null,null,null,null,null,null,null,null,null,null,null,null,null,null,null,null,null,null,null,null,null,null,null,null,null,null,null,null,null,null,null,null,null,null,null,null,null,null,null,null,null,null,null,null,null,null,null,null,null,null,null,null,null,null,null,null,null,"4900","精算"]
[null,null,null,null,null,null,null,null,null,null,null,null,null,null,null,null,null,null,null,null,null,null,null,null,null,null,null,null,null,null,null,null,null,null,null,null,null,null,null,null,null,null,null,null,null,null,null,null,null,null,null,null,null,null,null,null,null,null,null,null,null,null,null,null,null,null,"5001","追加工事　1"]
[null,null,null,null,null,null,null,null,null,null,null,null,null,null,null,null,null,null,null,null,null,null,null,null,null,null,null,null,null,null,null,null,null,null,null,null,null,null,null,null,null,null,null,null,null,null,null,null,null,null,null,null,null,null,null,null,null,null,null,null,null,null,null,null,null,null,"5002","追加工事　2"]
[null,null,null,null,null,null,null,null,null,null,null,null,null,null,null,null,null,null,null,null,null,null,null,null,null,null,null,null,null,null,null,null,null,null,null,null,null,null,null,null,null,null,null,null,null,null,null,null,null,null,null,null,null,null,null,null,null,null,null,null,null,null,null,null,null,null,"5003","追加工事　3"]
[null,null,null,null,null,null,null,null,null,null,null,null,null,null,null,null,null,null,null,null,null,null,null,null,null,null,null,null,null,null,null,null,null,null,null,null,null,null,null,null,null,null,null,null,null,null,null,null,null,null,null,null,null,null,null,null,null,null,null,null,null,null,null,null,null,null,"5004","追加工事　4"]
[null,null,null,null,null,null,null,null,null,null,null,null,null,null,null,null,null,null,null,null,null,null,null,null,null,null,null,null,null,null,null,null,null,null,null,null,null,null,null,null,null,null,null,null,null,null,null,null,null,null,null,null,null,null,null,null,null,null,null,null,null,null,null,null,null,null,"5005","追加工事　5"]
[null,null,null,null,null,null,null,null,null,null,null,null,null,null,null,null,null,null,null,null,null,null,null,null,null,null,null,null,null,null,null,null,null,null,null,null,null,null,null,null,null,null,null,null,null,null,null,null,null,null,null,null,null,null,null,null,null,null,null,null,null,null,null,null,null,null,"5006","追加工事　6"]
[null,null,null,null,null,null,null,null,null,null,null,null,null,null,null,null,null,null,null,null,null,null,null,null,null,null,null,null,null,null,null,null,null,null,null,null,null,null,null,null,null,null,null,null,null,null,null,null,null,null,null,null,null,null,null,null,null,null,null,null,null,null,null,null,null,null,"5007","追加工事　7"]
[null,null,null,null,null,null,null,null,null,null,null,null,null,null,null,null,null,null,null,null,null,null,null,null,null,null,null,null,null,null,null,null,null,null,null,null,null,null,null,null,null,null,null,null,null,null,null,null,null,null,null,null,null,null,null,null,null,null,null,null,null,null,null,null,null,null,"5008","追加工事　8"]
[null,null,null,null,null,null,null,null,null,null,null,null,null,null,null,null,null,null,null,null,null,null,null,null,null,null,null,null,null,null,null,null,null,null,null,null,null,null,null,null,null,null,null,null,null,null,null,null,null,null,null,null,null,null,null,null,null,null,null,null,null,null,null,null,null,null,"5009","追加工事　9"]
[null,null,null,null,null,null,null,null,null,null,null,null,null,null,null,null,null,null,null,null,null,null,null,null,null,null,null,null,null,null,null,null,null,null,null,null,null,null,null,null,null,null,null,null,null,null,null,null,null,null,null,null,null,null,null,null,null,null,null,null,null,null,null,null,null,null,"5010","追加工事　10"]
[null,null,null,null,null,null,null,null,null,null,null,null,null,null,null,null,null,null,null,null,null,null,null,null,null,null,null,null,null,null,null,null,null,null,null,null,null,null,null,null,null,null,null,null,null,null,null,null,null,null,null,null,null,null,null,null,null,null,null,null,null,null,null,null,null,null,"6000","VE・CD"]
[null,null,null,null,null,null,null,null,null,null,null,null,null,null,null,null,null,null,null,null,null,null,null,null,null,null,null,null,null,null,null,null,null,null,null,null,null,null,null,null,null,null,null,null,null,null,null,null,null,null,null,null,null,null,null,null,null,null,null,null,null,null,null,null,null,null,"8001","労務安全費"]
[null,null,null,null,null,null,null,null,null,null,null,null,null,null,null,null,null,null,null,null,null,null,null,null,null,null,null,null,null,null,null,null,null,null,null,null,null,null,null,null,null,null,null,null,null,null,null,null,null,null,null,null,null,null,null,null,null,null,null,null,null,null,null,null,null,null,"8004","社員給与手当"]
[null,null,null,null,null,null,null,null,null,null,null,null,null,null,null,null,null,null,null,null,null,null,null,null,null,null,null,null,null,null,null,null,null,null,null,null,null,null,null,null,null,null,null,null,null,null,null,null,null,null,null,null,null,null,null,null,null,null,null,null,null,null,null,null,null,null,"8005","福利厚生費"]
[null,null,null,null,null,null,null,null,null,null,null,null,null,null,null,null,null,null,null,null,null,null,null,null,null,null,null,null,null,null,null,null,null,null,null,null,null,null,null,null,null,null,null,null,null,null,null,null,null,null,null,null,null,null,null,null,null,null,null,null,null,null,null,null,null,null,"8006","事務用品費"]
[null,null,null,null,null,null,null,null,null,null,null,null,null,null,null,null,null,null,null,null,null,null,null,null,null,null,null,null,null,null,null,null,null,null,null,null,null,null,null,null,null,null,null,null,null,null,null,null,null,null,null,null,null,null,null,null,null,null,null,null,null,null,null,null,null,null,"8007","通信交通費"]
[null,null,null,null,null,null,null,null,null,null,null,null,null,null,null,null,null,null,null,null,null,null,null,null,null,null,null,null,null,null,null,null,null,null,null,null,null,null,null,null,null,null,null,null,null,null,null,null,null,null,null,null,null,null,null,null,null,null,null,null,null,null,null,null,null,null,"8008","補償費"]
[null,null,null,null,null,null,null,null,null,null,null,null,null,null,null,null,null,null,null,null,null,null,null,null,null,null,null,null,null,null,null,null,null,null,null,null,null,null,null,null,null,null,null,null,null,null,null,null,null,null,null,null,null,null,null,null,null,null,null,null,null,null,null,null,null,null,"8009","原価性費用"]
[null,null,null,null,null,null,null,null,null,null,null,null,null,null,null,null,null,null,null,null,null,null,null,null,null,null,null,null,null,null,null,null,null,null,null,null,null,null,null,null,null,null,null,null,null,null,null,null,null,null,null,null,null,null,null,null,null,null,null,null,null,null,null,null,null,null,"8020","利益配当金"]
[null,null,null,null,null,null,null,null,null,null,null,null,null,null,null,null,null,null,null,null,null,null,null,null,null,null,null,null,null,null,null,null,null,null,null,null,null,null,null,null,null,null,null,null,null,null,null,null,null,null,null,null,null,null,null,null,null,null,null,null,null,null,null,null,null,null,"9100","不動産原価"]
[null,null,null,null,null,null,null,null,null,null,null,null,null,null,null,null,null,null,null,null,null,null,null,null,null,null,null,null,null,null,null,null,null,null,null,null,null,null,null,null,null,null,null,null,null,null,null,null,null,null,null,null,null,null,null,null,null,null,null,null,null,null,null,null,null,null,"9200","紹介料"]
[null,null,null,null,null,null,null,null,null,null,null,null,null,null,null,null,null,null,null,null,null,null,null,null,null,null,null,null,null,null,null,null,null,null,null,null,null,null,null,null,null,null,null,null,null,null,null,null,null,null,null,null,null,null,null,null,null,null,null,null,null,null,null,null,null,null,"9300","不動産原価(非課税)"]

{"sheet":"内訳書","index":2,"n_rows":364,"n_cols":29,"rows_kept":364,"cut":false,"hidden":false,"merged":[[362,6,362,13],[362,15,362,16],[362,17,362,19],[362,20,362,23],[363,6,363,13],[363,15,363,16],[363,17,363,19],[363,20,363,23],[357,6,357,13],[357,15,357,16],[357,17,357,19],[357,20,357,23],[358,6,358,13],[358,15,358,16],[358,17,358,19],[358,20,358,23],[359,6,359,13],[359,15,359,16],[359,17,359,19],[359,20,359,23],[360,6,360,13],[360,15,360,16],[360,17,360,19],[360,20,360,23],[361,6,361,13],[361,15,361,16],[361,17,361,19],[361,20,361,23],[352,6,352,13],[352,15,352,16],[352,17,352,19],[352,20,352,23],[353,6,353,13],[353,15,353,16],[353,17,353,19],[353,20,353,23],[354,6,354,13],[354,15,354,16],[354,17,354,19],[354,20,354,23],[355,6,355,13],[355,15,355,16],[355,17,355,19],[355,20,355,23],[356,6,356,13],[356,15,356,16],[356,17,356,19],[356,20,356,23],[347,6,347,13],[347,15,347,16],[347,17,347,19],[347,20,347,23],[348,6,348,13],[348,15,348,16],[348,17,348,19],[348,20,348,23],[349,6,349,13],[349,15,349,16],[349,17,349,19],[349,20,349,23],[350,6,350,13],[350,15,350,16],[350,17,350,19],[350,20,350,23],[351,6,351,13],[351,15,351,16],[351,17,351,19],[351,20,351,23],[342,6,342,13],[342,15,342,16],[342,17,342,19],[342,20,342,23],[343,6,343,13],[343,15,343,16],[343,17,343,19],[343,20,343,23],[344,6,344,13],[344,15,344,16],[344,17,344,19],[344,20,344,23],[345,6,345,13],[345,15,345,16],[345,17,345,19],[345,20,345,23],[346,6,346,13],[346,15,346,16],[346,17,346,19],[346,20,346,23],[337,6,337,13],[337,15,337,16],[337,17,337,19],[337,20,337,23],[338,6,338,13],[338,15,338,16],[338,17,338,19],[338,20,338,23],[339,6,339,13],[339,15,339,16],[339,17,339,19],[339,20,339,23],[340,6,340,13],[340,15,340,16],[340,17,340,19],[340,20,340,23],[341,6,341,13],[341,15,341,16],[341,17,341,19],[341,20,341,23],[332,6,332,13],[332,15,332,16],[332,17,332,19],[332,20,332,23],[333,6,333,13],[333,15,333,16],[333,17,333,19],[333,20,333,23],[334,6,334,13],[334,15,334,16],[334,17,334,19],[334,20,334,23],[335,6,335,13],[335,15,335,16],[335,17,335,19],[335,20,335,23],[336,6,336,13],[336,15,336,16],[336,17,336,19],[336,20,336,23],[327,6,327,13],[327,15,327,16],[327,17,327,19],[327,20,327,23],[328,6,328,13],[328,15,328,16],[328,17,328,19],[328,20,328,23],[329,6,329,13],[329,15,329,16],[329,17,329,19],[329,20,329,23],[330,6,330,13],[330,15,330,16],[330,17,330,19],[330,20,330,23],[331,6,331,13],[331,15,331,16],[331,17,331,19],[331,20,331,23],[322,6,322,13],[322,15,322,16],[322,17,322,19],[322,20,322,23],[323,6,323,13],[323,15,323,16],[323,17,323,19],[323,20,323,23],[324,6,324,13],[324,15,324,16],[324,17,324,19],[324,20,324,23],[325,6,325,13],[325,15,325,16],[325,17,325,19],[325,20,325,23],[326,6,326,13],[326,15,326,16],[326,17,326,19],[326,20,326,23],[317,6,317,13],[317,15,317,16],[317,17,317,19],[317,20,317,23],[318,6,318,13],[318,15,318,16],[318,17,318,19],[318,20,318,23],[319,6,319,13],[319,15,319,16],[319,17,319,19],[319,20,319,23],[320,6,320,13],[320,15,320,16],[320,17,320,19],[320,20,320,23],[321,6,321,13],[321,15,321,16],[321,17,321,19],[321,20,321,23],[6,6,6,13],[6,15,6,16],[6,17,6,19],[6,20,6,23],[7,6,7,13],[7,15,7,16],[7,17,7,19],[7,20,7,23],[4,6,4,13],[4,15,4,16],[4,17,4,19],[4,20,4,23],[5,6,5,13],[5,15,5,16],[5,17,5,19],[5,20,5,23],[0,0,1,12],[0,20,0,23],[2,0,3,0],[2,1,2,5],[2,6,3,13],[2,14,3,14],[2,15,3,16],[2,17,3,19],[2,20,3,23],[1,17,1,23],[12,6,12,13],[12,15,12,16],[12,17,12,19],[12,20,12,23],[13,6,13,13],[13,15,13,16],[13,17,13,19],[13,20,13,23],[10,6,10,13],[10,15,10,16],[10,17,10,19],[10,20,10,23],[11,6,11,13],[11,15,11,16],[11,17,11,19],[11,20,11,23],[8,6,8,13],[8,15,8,16],[8,17,8,19],[8,20,8,23],[9,6,9,13],[9,15,9,16],[9,17,9,19],[9,20,9,23],[18,6,18,13],[18,15,18,16],[18,17,18,19],[18,20,18,23],[19,6,19,13],[19,15,19,16],[19,17,19,19],[19,20,19,23],[16,6,16,13],[16,15,16,16],[16,17,16,19],[16,20,16,23],[17,6,17,13],[17,15,17,16],[17,17,17,19],[17,20,17,23],[14,6,14,13],[14,15,14,16],[14,17,14,19],[14,20,14,23],[15,6,15,13],[15,15,15,16],[15,17,15,19],[15,20,15,23],[24,6,24,13],[24,15,24,16],[24,17,24,19],[24,20,24,23],[25,6,25,13],[25,15,25,16],[25,17,25,19],[25,20,25,23],[22,6,22,13],[22,15,22,16],[22,17,22,19],[22,20,22,23],[23,6,23,13],[23,15,23,16],[23,17,23,19],[23,20,23,23],[20,6,20,13],[20,15,20,16],[20,17,20,19],[20,20,20,23],[21,6,21,13],[21,15,21,16],[21,17,21,19],[21,20,21,23],[30,6,30,13],[30,15,30,16],[30,17,30,19],[30,20,30,23],[31,6,31,13],[31,15,31,16],[31,17,31,19],[31,20,31,23],[28,6,28,13],[28,15,28,16],[28,17,28,19],[28,20,28,23],[29,6,29,13],[29,15,29,16],[29,17,29,19],[29,20,29,23],[26,6,26,13],[26,15,26,16],[26,17,26,19],[26,20,26,23],[27,6,27,13],[27,15,27,16],[27,17,27,19],[27,20,27,23],[36,6,36,13],[36,15,36,16],[36,17,36,19],[36,20,36,23],[37,6,37,13],[37,15,37,16],[37,17,37,19],[37,20,37,23],[34,6,34,13],[34,15,34,16],[34,17,34,19],[34,20,34,23],[35,6,35,13],[35,15,35,16],[35,17,35,19],[35,20,35,23],[32,6,32,13],[32,15,32,16],[32,17,32,19],[32,20,32,23],[33,6,33,13],[33,15,33,16],[33,17,33,19],[33,20,33,23],[42,6,42,13],[42,15,42,16],[42,17,42,19],[42,20,42,23],[43,6,43,13],[43,15,43,16],[43,17,43,19],[43,20,43,23],[40,6,40,13],[40,15,40,16],[40,17,40,19],[40,20,40,23],[41,6,41,13],[41,15,41,16],[41,17,41,19],[41,20,41,23],[38,6,38,13],[38,15,38,16],[38,17,38,19],[38,20,38,23],[39,6,39,13],[39,15,39,16],[39,17,39,19],[39,20,39,23],[48,6,48,13],[48,15,48,16],[48,17,48,19],[48,20,48,23],[49,6,49,13],[49,15,49,16],[49,17,49,19],[49,20,49,23],[46,6,46,13],[46,15,46,16],[46,17,46,19],[46,20,46,23],[47,6,47,13],[47,15,47,16],[47,17,47,19],[47,20,47,23],[44,6,44,13],[44,15,44,16],[44,17,44,19],[44,20,44,23],[45,6,45,13],[45,15,45,16],[45,17,45,19],[45,20,45,23],[54,6,54,13],[54,15,54,16],[54,17,54,19],[54,20,54,23],[55,6,55,13],[55,15,55,16],[55,17,55,19],[55,20,55,23],[52,6,52,13],[52,15,52,16],[52,17,52,19],[52,20,52,23],[53,6,53,13],[53,15,53,16],[53,17,53,19],[53,20,53,23],[50,6,50,13],[50,15,50,16],[50,17,50,19],[50,20,50,23],[51,6,51,13],[51,15,51,16],[51,17,51,19],[51,20,51,23],[60,6,60,13],[60,15,60,16],[60,17,60,19],[60,20,60,23],[61,6,61,13],[61,15,61,16],[61,17,61,19],[61,20,61,23],[58,6,58,13],[58,15,58,16],[58,17,58,19],[58,20,58,23],[59,6,59,13],[59,15,59,16],[59,17,59,19],[59,20,59,23],[56,6,56,13],[56,15,56,16],[56,17,56,19],[56,20,56,23],[57,6,57,13],[57,15,57,16],[57,17,57,19],[57,20,57,23],[66,6,66,13],[66,15,66,16],[66,17,66,19],[66,20,66,23],[67,6,67,13],[67,15,67,16],[67,17,67,19],[67,20,67,23],[64,6,64,13],[64,15,64,16],[64,17,64,19],[64,20,64,23],[65,6,65,13],[65,15,65,16],[65,17,65,19],[65,20,65,23],[62,6,62,13],[62,15,62,16],[62,17,62,19],[62,20,62,23],[63,6,63,13],[63,15,63,16],[63,17,63,19],[63,20,63,23],[72,6,72,13],[72,15,72,16],[72,17,72,19],[72,20,72,23],[73,6,73,13],[73,15,73,16],[73,17,73,19],[73,20,73,23],[70,6,70,13],[70,15,70,16],[70,17,70,19],[70,20,70,23],[71,6,71,13],[71,15,71,16],[71,17,71,19],[71,20,71,23],[68,6,68,13],[68,15,68,16],[68,17,68,19],[68,20,68,23],[69,6,69,13],[69,15,69,16],[69,17,69,19],[69,20,69,23],[78,6,78,13],[78,15,78,16],[78,17,78,19],[78,20,78,23],[79,6,79,13],[79,15,79,16],[79,17,79,19],[79,20,79,23],[76,6,76,13],[76,15,76,16],[76,17,76,19],[76,20,76,23],[77,6,77,13],[77,15,77,16],[77,17,77,19],[77,20,77,23],[74,6,74,13],[74,15,74,16],[74,17,74,19],[74,20,74,23],[75,6,75,13],[75,15,75,16],[75,17,75,19],[75,20,75,23],[84,6,84,13],[84,15,84,16],[84,17,84,19],[84,20,84,23],[85,6,85,13],[85,15,85,16],[85,17,85,19],[85,20,85,23],[82,6,82,13],[82,15,82,16],[82,17,82,19],[82,20,82,23],[83,6,83,13],[83,15,83,16],[83,17,83,19],[83,20,83,23],[80,6,80,13],[80,15,80,16],[80,17,80,19],[80,20,80,23],[81,6,81,13],[81,15,81,16],[81,17,81,19],[81,20,81,23],[90,6,90,13],[90,15,90,16],[90,17,90,19],[90,20,90,23],[91,6,91,13],[91,15,91,16],[91,17,91,19],[91,20,91,23],[88,6,88,13],[88,15,88,16],[88,17,88,19],[88,20,88,23],[89,6,89,13],[89,15,89,16],[89,17,89,19],[89,20,89,23],[86,6,86,13],[86,15,86,16],[86,17,86,19],[86,20,86,23],[87,6,87,13],[87,15,87,16],[87,17,87,19],[87,20,87,23],[96,6,96,13],[96,15,96,16],[96,17,96,19],[96,20,96,23],[97,6,97,13],[97,15,97,16],[97,17,97,19],[97,20,97,23],[94,6,94,13],[94,15,94,16],[94,17,94,19],[94,20,94,23],[95,6,95,13],[95,15,95,16],[95,17,95,19],[95,20,95,23],[92,6,92,13],[92,15,92,16],[92,17,92,19],[92,20,92,23],[93,6,93,13],[93,15,93,16],[93,17,93,19],[93,20,93,23],[102,6,102,13],[102,15,102,16],[102,17,102,19],[102,20,102,23],[103,6,103,13],[103,15,103,16],[103,17,103,19],[103,20,103,23],[100,6,100,13],[100,15,100,16],[100,17,100,19],[100,20,100,23],[101,6,101,13],[101,15,101,16],[101,17,101,19],[101,20,101,23],[98,6,98,13],[98,15,98,16],[98,17,98,19],[98,20,98,23],[99,6,99,13],[99,15,99,16],[99,17,99,19],[99,20,99,23],[108,6,108,13],[108,15,108,16],[108,17,108,19],[108,20,108,23],[109,6,109,13],[109,15,109,16],[109,17,109,19],[109,20,109,23],[106,6,106,13],[106,15,106,16],[106,17,106,19],[106,20,106,23],[107,6,107,13],[107,15,107,16],[107,17,107,19],[107,20,107,23],[104,6,104,13],[104,15,104,16],[104,17,104,19],[104,20,104,23],[105,6,105,13],[105,15,105,16],[105,17,105,19],[105,20,105,23],[114,6,114,13],[114,15,114,16],[114,17,114,19],[114,20,114,23],[115,6,115,13],[115,15,115,16],[115,17,115,19],[115,20,115,23],[112,6,112,13],[112,15,112,16],[112,17,112,19],[112,20,112,23],[113,6,113,13],[113,15,113,16],[113,17,113,19],[113,20,113,23],[110,6,110,13],[110,15,110,16],[110,17,110,19],[110,20,110,23],[111,6,111,13],[111,15,111,16],[111,17,111,19],[111,20,111,23],[120,6,120,13],[120,15,120,16],[120,17,120,19],[120,20,120,23],[121,6,121,13],[121,15,121,16],[121,17,121,19],[121,20,121,23],[118,6,118,13],[118,15,118,16],[118,17,118,19],[118,20,118,23],[119,6,119,13],[119,15,119,16],[119,17,119,19],[119,20,119,23],[116,6,116,13],[116,15,116,16],[116,17,116,19],[116,20,116,23],[117,6,117,13],[117,15,117,16],[117,17,117,19],[117,20,117,23],[126,6,126,13],[126,15,126,16],[126,17,126,19],[126,20,126,23],[127,6,127,13],[127,15,127,16],[127,17,127,19],[127,20,127,23],[124,6,124,13],[124,15,124,16],[124,17,124,19],[124,20,124,23],[125,6,125,13],[125,15,125,16],[125,17,125,19],[125,20,125,23],[122,6,122,13],[122,15,122,16],[122,17,122,19],[122,20,122,23],[123,6,123,13],[123,15,123,16],[123,17,123,19],[123,20,123,23],[132,6,132,13],[132,15,132,16],[132,17,132,19],[132,20,132,23],[133,6,133,13],[133,15,133,16],[133,17,133,19],[133,20,133,23],[130,6,130,13],[130,15,130,16],[130,17,130,19],[130,20,130,23],[131,6,131,13],[131,15,131,16],[131,17,131,19],[131,20,131,23],[128,6,128,13],[128,15,128,16],[128,17,128,19],[128,20,128,23],[129,6,129,13],[129,15,129,16],[129,17,129,19],[129,20,129,23],[138,6,138,13],[138,15,138,16],[138,17,138,19],[138,20,138,23],[139,6,139,13],[139,15,139,16],[139,17,139,19],[139,20,139,23],[136,6,136,13],[136,15,136,16],[136,17,136,19],[136,20,136,23],[137,6,137,13],[137,15,137,16],[137,17,137,19],[137,20,137,23],[134,6,134,13],[134,15,134,16],[134,17,134,19],[134,20,134,23],[135,6,135,13],[135,15,135,16],[135,17,135,19],[135,20,135,23],[144,6,144,13],[144,15,144,16],[144,17,144,19],[144,20,144,23],[145,6,145,13],[145,15,145,16],[145,17,145,19],[145,20,145,23],[142,6,142,13],[142,15,142,16],[142,17,142,19],[142,20,142,23],[143,6,143,13],[143,15,143,16],[143,17,143,19],[143,20,143,23],[140,6,140,13],[140,15,140,16],[140,17,140,19],[140,20,140,23],[141,6,141,13],[141,15,141,16],[141,17,141,19],[141,20,141,23],[150,6,150,13],[150,15,150,16],[150,17,150,19],[150,20,150,23],[151,6,151,13],[151,15,151,16],[151,17,151,19],[151,20,151,23],[148,6,148,13],[148,15,148,16],[148,17,148,19],[148,20,148,23],[149,6,149,13],[149,15,149,16],[149,17,149,19],[149,20,149,23],[146,6,146,13],[146,15,146,16],[146,17,146,19],[146,20,146,23],[147,6,147,13],[147,15,147,16],[147,17,147,19],[147,20,147,23],[156,6,156,13],[156,15,156,16],[156,17,156,19],[156,20,156,23],[157,6,157,13],[157,15,157,16],[157,17,157,19],[157,20,157,23],[154,6,154,13],[154,15,154,16],[154,17,154,19],[154,20,154,23],[155,6,155,13],[155,15,155,16],[155,17,155,19],[155,20,155,23],[152,6,152,13],[152,15,152,16],[152,17,152,19],[152,20,152,23],[153,6,153,13],[153,15,153,16],[153,17,153,19],[153,20,153,23],[162,6,162,13],[162,15,162,16],[162,17,162,19],[162,20,162,23],[163,6,163,13],[163,15,163,16],[163,17,163,19],[163,20,163,23],[160,6,160,13],[160,15,160,16],[160,17,160,19],[160,20,160,23],[161,6,161,13],[161,15,161,16],[161,17,161,19],[161,20,161,23],[158,6,158,13],[158,15,158,16],[158,17,158,19],[158,20,158,23],[159,6,159,13],[159,15,159,16],[159,17,159,19],[159,20,159,23],[168,6,168,13],[168,15,168,16],[168,17,168,19],[168,20,168,23],[169,6,169,13],[169,15,169,16],[169,17,169,19],[169,20,169,23],[166,6,166,13],[166,15,166,16],[166,17,166,19],[166,20,166,23],[167,6,167,13],[167,15,167,16],[167,17,167,19],[167,20,167,23],[164,6,164,13],[164,15,164,16],[164,17,164,19],[164,20,164,23],[165,6,165,13],[165,15,165,16],[165,17,165,19],[165,20,165,23],[174,6,174,13],[174,15,174,16],[174,17,174,19],[174,20,174,23],[175,6,175,13],[175,15,175,16],[175,17,175,19],[175,20,175,23],[172,6,172,13],[172,15,172,16],[172,17,172,19],[172,20,172,23],[173,6,173,13],[173,15,173,16],[173,17,173,19],[173,20,173,23],[170,6,170,13],[170,15,170,16],[170,17,170,19],[170,20,170,23],[171,6,171,13],[171,15,171,16],[171,17,171,19],[171,20,171,23],[180,6,180,13],[180,15,180,16],[180,17,180,19],[180,20,180,23],[181,6,181,13],[181,15,181,16],[181,17,181,19],[181,20,181,23],[178,6,178,13],[178,15,178,16],[178,17,178,19],[178,20,178,23],[179,6,179,13],[179,15,179,16],[179,17,179,19],[179,20,179,23],[176,6,176,13],[176,15,176,16],[176,17,176,19],[176,20,176,23],[177,6,177,13],[177,15,177,16],[177,17,177,19],[177,20,177,23],[186,6,186,13],[186,15,186,16],[186,17,186,19],[186,20,186,23],[187,6,187,13],[187,15,187,16],[187,17,187,19],[187,20,187,23],[184,6,184,13],[184,15,184,16],[184,17,184,19],[184,20,184,23],[185,6,185,13],[185,15,185,16],[185,17,185,19],[185,20,185,23],[182,6,182,13],[182,15,182,16],[182,17,182,19],[182,20,182,23],[183,6,183,13],[183,15,183,16],[183,17,183,19],[183,20,183,23],[192,6,192,13],[192,15,192,16],[192,17,192,19],[192,20,192,23],[193,6,193,13],[193,15,193,16],[193,17,193,19],[193,20,193,23],[190,6,190,13],[190,15,190,16],[190,17,190,19],[190,20,190,23],[191,6,191,13],[191,15,191,16],[191,17,191,19],[191,20,191,23],[188,6,188,13],[188,15,188,16],[188,17,188,19],[188,20,188,23],[189,6,189,13],[189,15,189,16],[189,17,189,19],[189,20,189,23],[198,6,198,13],[198,15,198,16],[198,17,198,19],[198,20,198,23],[199,6,199,13],[199,15,199,16],[199,17,199,19],[199,20,199,23],[196,6,196,13],[196,15,196,16],[196,17,196,19],[196,20,196,23],[197,6,197,13],[197,15,197,16],[197,17,197,19],[197,20,197,23],[194,6,194,13],[194,15,194,16],[194,17,194,19],[194,20,194,23],[195,6,195,13],[195,15,195,16],[195,17,195,19],[195,20,195,23],[204,6,204,13],[204,15,204,16],[204,17,204,19],[204,20,204,23],[205,6,205,13],[205,15,205,16],[205,17,205,19],[205,20,205,23],[202,6,202,13],[202,15,202,16],[202,17,202,19],[202,20,202,23],[203,6,203,13],[203,15,203,16],[203,17,203,19],[203,20,203,23],[200,6,200,13],[200,15,200,16]],"merged_total":1462,"flags":["merged_cut"]}
["請求内訳",null,null,null,null,null,null,null,null,null,null,null,null,null,null,null,null,null,null,null,"提出用"]
[null,null,null,null,null,null,null,null,null,null,null,null,null,null,null,null,null,{"$f":"IF(基本データ!G4=0,\"\",基本データ!G4)","v":""}]
["コード","日付（期間）",null,null,null,null,"名称・品名・形状・寸法",null,null,null,null,null,null,null,"単位","数　量",null,"単　価",null,null,"金　　額"]
[null,"月","日","～","月","日",null,null,null,null,null,null,null,null,null,null,null,null,null,null,null,null,null,null,null,null,null,"コードごとの小計"]
[null,null,null,{"$f":"IF(E5=\"\",\"\",\"～\")","v":""},null,null,null,null,null,null,null,null,null,null,null,null,null,null,null,null,{"$f":"IF(R5=0,\"\",ROUND(P5*R5,0))","v":""},null,null,null,null,{"$f":"IF(U5=\"\",\"\",IF(SUM(A$5:A$1048576)=0,\"\",IF(A5=0,\"コード入力\",\"\")))","v":""},null,1,{"$f":"SUMIF(A:A,AB5,U:X)","v":0}]
[null,null,null,{"$f":"IF(E6=\"\",\"\",\"～\")","v":""},null,null,null,null,null,null,null,null,null,null,null,null,null,null,null,null,"",null,null,null,null,"",null,2,0]
[null,null,null,"",null,null,null,null,null,null,null,null,null,null,null,null,null,null,null,null,"",null,null,null,null,"",null,3,0]
[null,null,null,"",null,null,null,null,null,null,null,null,null,null,null,null,null,null,null,null,"",null,null,null,null,"",null,4,0]
[null,null,null,"",null,null,null,null,null,null,null,null,null,null,null,null,null,null,null,null,"",null,null,null,null,"",null,5,0]
[null,null,null,"",null,null,null,null,null,null,null,null,null,null,null,null,null,null,null,null,"",null,null,null,null,"",null,6,0]
[null,null,null,"",null,null,null,null,null,null,null,null,null,null,null,null,null,null,null,null,"",null,null,null,null,"",null,7,0]
[null,null,null,"",null,null,null,null,null,null,null,null,null,null,null,null,null,null,null,null,"",null,null,null,null,"",null,8,0]
[null,null,null,"",null,null,null,null,null,null,null,null,null,null,null,null,null,null,null,null,"",null,null,null,null,"",null,9,0]
[null,null,null,"",null,null,null,null,null,null,null,null,null,null,null,null,null,null,null,null,"",null,null,null,null,"",null,10,0]
[null,null,null,"",null,null,null,null,null,null,null,null,null,null,null,null,null,null,null,null,"",null,null,null,null,"",null,"なし",{"$f":"IF(SUM(A5:A1003)=0,SUM(U5:X1003),0)","v":0}]
[null,null,null,"",null,null,null,null,null,null,null,null,null,null,null,null,null,null,null,null,"",null,null,null,null,""]
[null,null,null,"",null,null,null,null,null,null,null,null,null,null,null,null,null,null,null,null,"",null,null,null,null,""]
[null,null,null,"",null,null,null,null,null,null,null,null,null,null,null,null,null,null,null,null,"",null,null,null,null,""]
[null,null,null,"",null,null,null,null,null,null,null,null,null,null,null,null,null,null,null,null,"",null,null,null,null,""]
[null,null,null,"",null,null,null,null,null,null,null,null,null,null,null,null,null,null,null,null,"",null,null,null,null,""]
[null,null,null,"",null,null,null,null,null,null,null,null,null,null,null,null,null,null,null,null,"",null,null,null,null,""]
[null,null,null,"",null,null,null,null,null,null,null,null,null,null,null,null,null,null,null,null,"",null,null,null,null,""]
[null,null,null,"",null,null,null,null,null,null,null,null,null,null,null,null,null,null,null,null,"",null,null,null,null,""]
[null,null,null,"",null,null,null,null,null,null,null,null,null,null,null,null,null,null,null,null,"",null,null,null,null,""]
[null,null,null,"",null,null,null,null,null,null,null,null,null,null,null,null,null,null,null,null,"",null,null,null,null,""]
[null,null,null,"",null,null,null,null,null,null,null,null,null,null,null,null,null,null,null,null,"",null,null,null,null,""]
[null,null,null,"",null,null,null,null,null,null,null,null,null,null,null,null,null,null,null,null,"",null,null,null,null,""]
[null,null,null,"",null,null,null,null,null,null,null,null,null,null,null,null,null,null,null,null,"",null,null,null,null,""]
[null,null,null,"",null,null,null,null,null,null,null,null,null,null,null,null,null,null,null,null,"",null,null,null,null,""]
[null,null,null,"",null,null,null,null,null,null,null,null,null,null,null,null,null,null,null,null,"",null,null,null,null,""]
[null,null,null,"",null,null,null,null,null,null,null,null,null,null,null,null,null,null,null,null,"",null,null,null,null,""]
[null,null,null,"",null,null,null,null,null,null,null,null,null,null,null,null,null,null,null,null,"",null,null,null,null,""]
[null,null,null,"",null,null,null,null,null,null,null,null,null,null,null,null,null,null,null,null,"",null,null,null,null,""]
[null,null,null,"",null,null,null,null,null,null,null,null,null,null,null,null,null,null,null,null,"",null,null,null,null,""]
[null,null,null,"",null,null,null,null,null,null,null,null,null,null,null,null,null,null,null,null,"",null,null,null,null,""]
[null,null,null,"",null,null,null,null,null,null,null,null,null,null,null,null,null,null,null,null,"",null,null,null,null,""]
[null,null,null,"",null,null,null,null,null,null,null,null,null,null,null,null,null,null,null,null,"",null,null,null,null,""]
[null,null,null,"",null,null,null,null,null,null,null,null,null,null,null,null,null,null,null,null,"",null,null,null,null,""]
[null,null,null,"",null,null,null,null,null,null,null,null,null,null,null,null,null,null,null,null,"",null,null,null,null,""]
[null,null,null,"",null,null,null,null,null,null,null,null,null,null,null,null,null,null,null,null,"",null,null,null,null,""]
[null,null,null,"",null,null,null,null,null,null,null,null,null,null,null,null,null,null,null,null,"",null,null,null,null,""]
[null,null,null,"",null,null,null,null,null,null,null,null,null,null,null,null,null,null,null,null,"",null,null,null,null,""]
[null,null,null,"",null,null,null,null,null,null,null,null,null,null,null,null,null,null,null,null,"",null,null,null,null,""]
[null,null,null,"",null,null,null,null,null,null,null,null,null,null,null,null,null,null,null,null,"",null,null,null,null,""]
[null,null,null,"",null,null,null,null,null,null,null,null,null,null,null,null,null,null,null,null,"",null,null,null,null,""]
[null,null,null,"",null,null,null,null,null,null,null,null,null,null,null,null,null,null,null,null,"",null,null,null,null,""]
[null,null,null,"",null,null,null,null,null,null,null,null,null,null,null,null,null,null,null,null,"",null,null,null,null,""]
[null,null,null,"",null,null,null,null,null,null,null,null,null,null,null,null,null,null,null,null,"",null,null,null,null,""]
[null,null,null,"",null,null,null,null,null,null,null,null,null,null,null,null,null,null,null,null,"",null,null,null,null,""]
[null,null,null,"",null,null,null,null,null,null,null,null,null,null,null,null,null,null,null,null,"",null,null,null,null,""]
[null,null,null,"",null,null,null,null,null,null,null,null,null,null,null,null,null,null,null,null,"",null,null,null,null,""]
[null,null,null,"",null,null,null,null,null,null,null,null,null,null,null,null,null,null,null,null,"",null,null,null,null,""]
[null,null,null,"",null,null,null,null,null,null,null,null,null,null,null,null,null,null,null,null,"",null,null,null,null,""]
[null,null,null,"",null,null,null,null,null,null,null,null,null,null,null,null,null,null,null,null,"",null,null,null,null,""]
[null,null,null,"",null,null,null,null,null,null,null,null,null,null,null,null,null,null,null,null,"",null,null,null,null,""]
[null,null,null,"",null,null,null,null,null,null,null,null,null,null,null,null,null,null,null,null,"",null,null,null,null,""]
[null,null,null,"",null,null,null,null,null,null,null,null,null,null,null,null,null,null,null,null,"",null,null,null,null,""]
[null,null,null,"",null,null,null,null,null,null,null,null,null,null,null,null,null,null,null,null,"",null,null,null,null,""]
[null,null,null,"",null,null,null,null,null,null,null,null,null,null,null,null,null,null,null,null,"",null,null,null,null,""]
[null,null,null,"",null,null,null,null,null,null,null,null,null,null,null,null,null,null,null,null,"",null,null,null,null,""]
[null,null,null,"",null,null,null,null,null,null,null,null,null,null,null,null,null,null,null,null,"",null,null,null,null,""]
[null,null,null,"",null,null,null,null,null,null,null,null,null,null,null,null,null,null,null,null,"",null,null,null,null,""]
[null,null,null,"",null,null,null,null,null,null,null,null,null,null,null,null,null,null,null,null,"",null,null,null,null,""]
[null,null,null,"",null,null,null,null,null,null,null,null,null,null,null,null,null,null,null,null,"",null,null,null,null,""]
[null,null,null,"",null,null,null,null,null,null,null,null,null,null,null,null,null,null,null,null,"",null,null,null,null,""]
[null,null,null,"",null,null,null,null,null,null,null,null,null,null,null,null,null,null,null,null,"",null,null,null,null,""]
[null,null,null,"",null,null,null,null,null,null,null,null,null,null,null,null,null,null,null,null,"",null,null,null,null,""]
[null,null,null,"",null,null,null,null,null,null,null,null,null,null,null,null,null,null,null,null,"",null,null,null,null,""]
[null,null,null,"",null,null,null,null,null,null,null,null,null,null,null,null,null,null,null,null,{"$f":"IF(R69=0,\"\",ROUND(P69*R69,0))","v":""},null,null,null,null,{"$f":"IF(U69=\"\",\"\",IF(SUM(A$5:A$1048576)=0,\"\",IF(A69=0,\"コード入力\",\"\")))","v":""}]
[null,null,null,{"$f":"IF(E70=\"\",\"\",\"～\")","v":""},null,null,null,null,null,null,null,null,null,null,null,null,null,null,null,null,"",null,null,null,null,""]
[null,null,null,"",null,null,null,null,null,null,null,null,null,null,null,null,null,null,null,null,"",null,null,null,null,""]
[null,null,null,"",null,null,null,null,null,null,null,null,null,null,null,null,null,null,null,null,"",null,null,null,null,""]
[null,null,null,"",null,null,null,null,null,null,null,null,null,null,null,null,null,null,null,null,"",null,null,null,null,""]
[null,null,null,"",null,null,null,null,null,null,null,null,null,null,null,null,null,null,null,null,"",null,null,null,null,""]
[null,null,null,"",null,null,null,null,null,null,null,null,null,null,null,null,null,null,null,null,"",null,null,null,null,""]
[null,null,null,"",null,null,null,null,null,null,null,null,null,null,null,null,null,null,null,null,"",null,null,null,null,""]
[null,null,null,"",null,null,null,null,null,null,null,null,null,null,null,null,null,null,null,null,"",null,null,null,null,""]
[null,null,null,"",null,null,null,null,null,null,null,null,null,null,null,null,null,null,null,null,"",null,null,null,null,""]
[null,null,null,"",null,null,null,null,null,null,null,null,null,null,null,null,null,null,null,null,"",null,null,null,null,""]
[null,null,null,"",null,null,null,null,null,null,null,null,null,null,null,null,null,null,null,null,"",null,null,null,null,""]
[null,null,null,"",null,null,null,null,null,null,null,null,null,null,null,null,null,null,null,null,"",null,null,null,null,""]
[null,null,null,"",null,null,null,null,null,null,null,null,null,null,null,null,null,null,null,null,"",null,null,null,null,""]
[null,null,null,"",null,null,null,null,null,null,null,null,null,null,null,null,null,null,null,null,"",null,null,null,null,""]
[null,null,null,"",null,null,null,null,null,null,null,null,null,null,null,null,null,null,null,null,"",null,null,null,null,""]
[null,null,null,"",null,null,null,null,null,null,null,null,null,null,null,null,null,null,null,null,"",null,null,null,null,""]
[null,null,null,"",null,null,null,null,null,null,null,null,null,null,null,null,null,null,null,null,"",null,null,null,null,""]
[null,null,null,"",null,null,null,null,null,null,null,null,null,null,null,null,null,null,null,null,"",null,null,null,null,""]
[null,null,null,"",null,null,null,null,null,null,null,null,null,null,null,null,null,null,null,null,"",null,null,null,null,""]
[null,null,null,"",null,null,null,null,null,null,null,null,null,null,null,null,null,null,null,null,"",null,null,null,null,""]
[null,null,null,"",null,null,null,null,null,null,null,null,null,null,null,null,null,null,null,null,"",null,null,null,null,""]
[null,null,null,"",null,null,null,null,null,null,null,null,null,null,null,null,null,null,null,null,"",null,null,null,null,""]
[null,null,null,"",null,null,null,null,null,null,null,null,null,null,null,null,null,null,null,null,"",null,null,null,null,""]
[null,null,null,"",null,null,null,null,null,null,null,null,null,null,null,null,null,null,null,null,"",null,null,null,null,""]
[null,null,null,"",null,null,null,null,null,null,null,null,null,null,null,null,null,null,null,null,"",null,null,null,null,""]
[null,null,null,"",null,null,null,null,null,null,null,null,null,null,null,null,null,null,null,null,"",null,null,null,null,""]
[null,null,null,"",null,null,null,null,null,null,null,null,null,null,null,null,null,null,null,null,"",null,null,null,null,""]
[null,null,null,"",null,null,null,null,null,null,null,null,null,null,null,null,null,null,null,null,"",null,null,null,null,""]
[null,null,null,"",null,null,null,null,null,null,null,null,null,null,null,null,null,null,null,null,"",null,null,null,null,""]
[null,null,null,"",null,null,null,null,null,null,null,null,null,null,null,null,null,null,null,null,"",null,null,null,null,""]
[null,null,null,"",null,null,null,null,null,null,null,null,null,null,null,null,null,null,null,null,"",null,null,null,null,""]
[null,null,null,"",null,null,null,null,null,null,null,null,null,null,null,null,null,null,null,null,"",null,null,null,null,""]
[null,null,null,"",null,null,null,null,null,null,null,null,null,null,null,null,null,null,null,null,"",null,null,null,null,""]
[null,null,null,"",null,null,null,null,null,null,null,null,null,null,null,null,null,null,null,null,"",null,null,null,null,""]
[null,null,null,"",null,null,null,null,null,null,null,null,null,null,null,null,null,null,null,null,"",null,null,null,null,""]
[null,null,null,"",null,null,null,null,null,null,null,null,null,null,null,null,null,null,null,null,"",null,null,null,null,""]
[null,null,null,"",null,null,null,null,null,null,null,null,null,null,null,null,null,null,null,null,"",null,null,null,null,""]
[null,null,null,"",null,null,null,null,null,null,null,null,null,null,null,null,null,null,null,null,"",null,null,null,null,""]
[null,null,null,"",null,null,null,null,null,null,null,null,null,null,null,null,null,null,null,null,"",null,null,null,null,""]
[null,null,null,"",null,null,null,null,null,null,null,null,null,null,null,null,null,null,null,null,"",null,null,null,null,""]
[null,null,null,"",null,null,null,null,null,null,null,null,null,null,null,null,null,null,null,null,"",null,null,null,null,""]
[null,null,null,"",null,null,null,null,null,null,null,null,null,null,null,null,null,null,null,null,"",null,null,null,null,""]
[null,null,null,"",null,null,null,null,null,null,null,null,null,null,null,null,null,null,null,null,"",null,null,null,null,""]
[null,null,null,"",null,null,null,null,null,null,null,null,null,null,null,null,null,null,null,null,"",null,null,null,null,""]
[null,null,null,"",null,null,null,null,null,null,null,null,null,null,null,null,null,null,null,null,"",null,null,null,null,""]
[null,null,null,"",null,null,null,null,null,null,null,null,null,null,null,null,null,null,null,null,"",null,null,null,null,""]
[null,null,null,"",null,null,null,null,null,null,null,null,null,null,null,null,null,null,null,null,"",null,null,null,null,""]
[null,null,null,"",null,null,null,null,null,null,null,null,null,null,null,null,null,null,null,null,"",null,null,null,null,""]
[null,null,null,"",null,null,null,null,null,null,null,null,null,null,null,null,null,null,null,null,"",null,null,null,null,""]
[null,null,null,"",null,null,null,null,null,null,null,null,null,null,null,null,null,null,null,null,"",null,null,null,null,""]
[null,null,null,"",null,null,null,null,null,null,null,null,null,null,null,null,null,null,null,null,"",null,null,null,null,""]
[null,null,null,"",null,null,null,null,null,null,null,null,null,null,null,null,null,null,null,null,"",null,null,null,null,""]
[null,null,null,"",null,null,null,null,null,null,null,null,null,null,null,null,null,null,null,null,"",null,null,null,null,""]
[null,null,null,"",null,null,null,null,null,null,null,null,null,null,null,null,null,null,null,null,"",null,null,null,null,""]
[null,null,null,"",null,null,null,null,null,null,null,null,null,null,null,null,null,null,null,null,"",null,null,null,null,""]
[null,null,null,"",null,null,null,null,null,null,null,null,null,null,null,null,null,null,null,null,"",null,null,null,null,""]
[null,null,null,"",null,null,null,null,null,null,null,null,null,null,null,null,null,null,null,null,"",null,null,null,null,""]
[null,null,null,"",null,null,null,null,null,null,null,null,null,null,null,null,null,null,null,null,"",null,null,null,null,""]
[null,null,null,"",null,null,null,null,null,null,null,null,null,null,null,null,null,null,null,null,"",null,null,null,null,""]
[null,null,null,"",null,null,null,null,null,null,null,null,null,null,null,null,null,null,null,null,"",null,null,null,null,""]
[null,null,null,"",null,null,null,null,null,null,null,null,null,null,null,null,null,null,null,null,"",null,null,null,null,""]
[null,null,null,"",null,null,null,null,null,null,null,null,null,null,null,null,null,null,null,null,"",null,null,null,null,""]
[null,null,null,"",null,null,null,null,null,null,null,null,null,null,null,null,null,null,null,null,"",null,null,null,null,""]
[null,null,null,"",null,null,null,null,null,null,null,null,null,null,null,null,null,null,null,null,{"$f":"IF(R133=0,\"\",ROUND(P133*R133,0))","v":""},null,null,null,null,{"$f":"IF(U133=\"\",\"\",IF(SUM(A$5:A$1048576)=0,\"\",IF(A133=0,\"コード入力\",\"\")))","v":""}]
[null,null,null,{"$f":"IF(E134=\"\",\"\",\"～\")","v":""},null,null,null,null,null,null,null,null,null,null,null,null,null,null,null,null,"",null,null,null,null,""]
[null,null,null,"",null,null,null,null,null,null,null,null,null,null,null,null,null,null,null,null,"",null,null,null,null,""]
[null,null,null,"",null,null,null,null,null,null,null,null,null,null,null,null,null,null,null,null,"",null,null,null,null,""]
[null,null,null,"",null,null,null,null,null,null,null,null,null,null,null,null,null,null,null,null,"",null,null,null,null,""]
[null,null,null,"",null,null,null,null,null,null,null,null,null,null,null,null,null,null,null,null,"",null,null,null,null,""]
[null,null,null,"",null,null,null,null,null,null,null,null,null,null,null,null,null,null,null,null,"",null,null,null,null,""]
[null,null,null,"",null,null,null,null,null,null,null,null,null,null,null,null,null,null,null,null,"",null,null,null,null,""]
[null,null,null,"",null,null,null,null,null,null,null,null,null,null,null,null,null,null,null,null,"",null,null,null,null,""]
[null,null,null,"",null,null,null,null,null,null,null,null,null,null,null,null,null,null,null,null,"",null,null,null,null,""]
[null,null,null,"",null,null,null,null,null,null,null,null,null,null,null,null,null,null,null,null,"",null,null,null,null,""]
[null,null,null,"",null,null,null,null,null,null,null,null,null,null,null,null,null,null,null,null,"",null,null,null,null,""]
[null,null,null,"",null,null,null,null,null,null,null,null,null,null,null,null,null,null,null,null,"",null,null,null,null,""]
[null,null,null,"",null,null,null,null,null,null,null,null,null,null,null,null,null,null,null,null,"",null,null,null,null,""]
[null,null,null,"",null,null,null,null,null,null,null,null,null,null,null,null,null,null,null,null,"",null,null,null,null,""]
[null,null,null,"",null,null,null,null,null,null,null,null,null,null,null,null,null,null,null,null,"",null,null,null,null,""]
[null,null,null,"",null,null,null,null,null,null,null,null,null,null,null,null,null,null,null,null,"",null,null,null,null,""]
[null,null,null,"",null,null,null,null,null,null,null,null,null,null,null,null,null,null,null,null,"",null,null,null,null,""]
[null,null,null,"",null,null,null,null,null,null,null,null,null,null,null,null,null,null,null,null,"",null,null,null,null,""]
[null,null,null,"",null,null,null,null,null,null,null,null,null,null,null,null,null,null,null,null,"",null,null,null,null,""]
[null,null,null,"",null,null,null,null,null,null,null,null,null,null,null,null,null,null,null,null,"",null,null,null,null,""]
[null,null,null,"",null,null,null,null,null,null,null,null,null,null,null,null,null,null,null,null,"",null,null,null,null,""]
[null,null,null,"",null,null,null,null,null,null,null,null,null,null,null,null,null,null,null,null,"",null,null,null,null,""]
[null,null,null,"",null,null,null,null,null,null,null,null,null,null,null,null,null,null,null,null,"",null,null,null,null,""]
[null,null,null,"",null,null,null,null,null,null,null,null,null,null,null,null,null,null,null,null,"",null,null,null,null,""]
[null,null,null,"",null,null,null,null,null,null,null,null,null,null,null,null,null,null,null,null,"",null,null,null,null,""]
[null,null,null,"",null,null,null,null,null,null,null,null,null,null,null,null,null,null,null,null,"",null,null,null,null,""]
[null,null,null,"",null,null,null,null,null,null,null,null,null,null,null,null,null,null,null,null,"",null,null,null,null,""]
[null,null,null,"",null,null,null,null,null,null,null,null,null,null,null,null,null,null,null,null,"",null,null,null,null,""]
[null,null,null,"",null,null,null,null,null,null,null,null,null,null,null,null,null,null,null,null,"",null,null,null,null,""]
[null,null,null,"",null,null,null,null,null,null,null,null,null,null,null,null,null,null,null,null,"",null,null,null,null,""]
[null,null,null,"",null,null,null,null,null,null,null,null,null,null,null,null,null,null,null,null,"",null,null,null,null,""]
[null,null,null,"",null,null,null,null,null,null,null,null,null,null,null,null,null,null,null,null,"",null,null,null,null,""]
[null,null,null,"",null,null,null,null,null,null,null,null,null,null,null,null,null,null,null,null,"",null,null,null,null,""]
[null,null,null,"",null,null,null,null,null,null,null,null,null,null,null,null,null,null,null,null,"",null,null,null,null,""]
[null,null,null,"",null,null,null,null,null,null,null,null,null,null,null,null,null,null,null,null,"",null,null,null,null,""]
[null,null,null,"",null,null,null,null,null,null,null,null,null,null,null,null,null,null,null,null,"",null,null,null,null,""]
[null,null,null,"",null,null,null,null,null,null,null,null,null,null,null,null,null,null,null,null,"",null,null,null,null,""]
[null,null,null,"",null,null,null,null,null,null,null,null,null,null,null,null,null,null,null,null,"",null,null,null,null,""]
[null,null,null,"",null,null,null,null,null,null,null,null,null,null,null,null,null,null,null,null,"",null,null,null,null,""]
[null,null,null,"",null,null,null,null,null,null,null,null,null,null,null,null,null,null,null,null,"",null,null,null,null,""]
[null,null,null,"",null,null,null,null,null,null,null,null,null,null,null,null,null,null,null,null,"",null,null,null,null,""]
[null,null,null,"",null,null,null,null,null,null,null,null,null,null,null,null,null,null,null,null,"",null,null,null,null,""]
[null,null,null,"",null,null,null,null,null,null,null,null,null,null,null,null,null,null,null,null,"",null,null,null,null,""]
[null,null,null,"",null,null,null,null,null,null,null,null,null,null,null,null,null,null,null,null,"",null,null,null,null,""]
[null,null,null,"",null,null,null,null,null,null,null,null,null,null,null,null,null,null,null,null,"",null,null,null,null,""]
[null,null,null,"",null,null,null,null,null,null,null,null,null,null,null,null,null,null,null,null,"",null,null,null,null,""]
[null,null,null,"",null,null,null,null,null,null,null,null,null,null,null,null,null,null,null,null,"",null,null,null,null,""]
[null,null,null,"",null,null,null,null,null,null,null,null,null,null,null,null,null,null,null,null,"",null,null,null,null,""]
[null,null,null,"",null,null,null,null,null,null,null,null,null,null,null,null,null,null,null,null,"",null,null,null,null,""]
[null,null,null,"",null,null,null,null,null,null,null,null,null,null,null,null,null,null,null,null,"",null,null,null,null,""]
[null,null,null,"",null,null,null,null,null,null,null,null,null,null,null,null,null,null,null,null,"",null,null,null,null,""]
[null,null,null,"",null,null,null,null,null,null,null,null,null,null,null,null,null,null,null,null,"",null,null,null,null,""]
[null,null,null,"",null,null,null,null,null,null,null,null,null,null,null,null,null,null,null,null,"",null,null,null,null,""]
[null,null,null,"",null,null,null,null,null,null,null,null,null,null,null,null,null,null,null,null,"",null,null,null,null,""]
[null,null,null,"",null,null,null,null,null,null,null,null,null,null,null,null,null,null,null,null,"",null,null,null,null,""]
[null,null,null,"",null,null,null,null,null,null,null,null,null,null,null,null,null,null,null,null,"",null,null,null,null,""]
[null,null,null,"",null,null,null,null,null,null,null,null,null,null,null,null,null,null,null,null,"",null,null,null,null,""]
[null,null,null,"",null,null,null,null,null,null,null,null,null,null,null,null,null,null,null,null,"",null,null,null,null,""]
[null,null,null,"",null,null,null,null,null,null,null,null,null,null,null,null,null,null,null,null,"",null,null,null,null,""]
[null,null,null,"",null,null,null,null,null,null,null,null,null,null,null,null,null,null,null,null,"",null,null,null,null,""]
[null,null,null,"",null,null,null,null,null,null,null,null,null,null,null,null,null,null,null,null,"",null,null,null,null,""]
[null,null,null,"",null,null,null,null,null,null,null,null,null,null,null,null,null,null,null,null,"",null,null,null,null,""]
[null,null,null,"",null,null,null,null,null,null,null,null,null,null,null,null,null,null,null,null,"",null,null,null,null,""]
[null,null,null,"",null,null,null,null,null,null,null,null,null,null,null,null,null,null,null,null,{"$f":"IF(R197=0,\"\",ROUND(P197*R197,0))","v":""},null,null,null,null,{"$f":"IF(U197=\"\",\"\",IF(SUM(A$5:A$1048576)=0,\"\",IF(A197=0,\"コード入力\",\"\")))","v":""}]
[null,null,null,{"$f":"IF(E198=\"\",\"\",\"～\")","v":""},null,null,null,null,null,null,null,null,null,null,null,null,null,null,null,null,"",null,null,null,null,""]
[null,null,null,"",null,null,null,null,null,null,null,null,null,null,null,null,null,null,null,null,"",null,null,null,null,""]
[null,null,null,"",null,null,null,null,null,null,null,null,null,null,null,null,null,null,null,null,"",null,null,null,null,""]
[null,null,null,"",null,null,null,null,null,null,null,null,null,null,null,null,null,null,null,null,"",null,null,null,null,""]
[null,null,null,"",null,null,null,null,null,null,null,null,null,null,null,null,null,null,null,null,"",null,null,null,null,""]
[null,null,null,"",null,null,null,null,null,null,null,null,null,null,null,null,null,null,null,null,"",null,null,null,null,""]
[null,null,null,"",null,null,null,null,null,null,null,null,null,null,null,null,null,null,null,null,"",null,null,null,null,""]
[null,null,null,"",null,null,null,null,null,null,null,null,null,null,null,null,null,null,null,null,"",null,null,null,null,""]
[null,null,null,"",null,null,null,null,null,null,null,null,null,null,null,null,null,null,null,null,"",null,null,null,null,""]
[null,null,null,"",null,null,null,null,null,null,null,null,null,null,null,null,null,null,null,null,"",null,null,null,null,""]
[null,null,null,"",null,null,null,null,null,null,null,null,null,null,null,null,null,null,null,null,"",null,null,null,null,""]
[null,null,null,"",null,null,null,null,null,null,null,null,null,null,null,null,null,null,null,null,"",null,null,null,null,""]
[null,null,null,"",null,null,null,null,null,null,null,null,null,null,null,null,null,null,null,null,"",null,null,null,null,""]
[null,null,null,"",null,null,null,null,null,null,null,null,null,null,null,null,null,null,null,null,"",null,null,null,null,""]
[null,null,null,"",null,null,null,null,null,null,null,null,null,null,null,null,null,null,null,null,"",null,null,null,null,""]
[null,null,null,"",null,null,null,null,null,null,null,null,null,null,null,null,null,null,null,null,"",null,null,null,null,""]
[null,null,null,"",null,null,null,null,null,null,null,null,null,null,null,null,null,null,null,null,"",null,null,null,null,""]
[null,null,null,"",null,null,null,null,null,null,null,null,null,null,null,null,null,null,null,null,"",null,null,null,null,""]
[null,null,null,"",null,null,null,null,null,null,null,null,null,null,null,null,null,null,null,null,"",null,null,null,null,""]
[null,null,null,"",null,null,null,null,null,null,null,null,null,null,null,null,null,null,null,null,"",null,null,null,null,""]
[null,null,null,"",null,null,null,null,null,null,null,null,null,null,null,null,null,null,null,null,"",null,null,null,null,""]
[null,null,null,"",null,null,null,null,null,null,null,null,null,null,null,null,null,null,null,null,"",null,null,null,null,""]
[null,null,null,"",null,null,null,null,null,null,null,null,null,null,null,null,null,null,null,null,"",null,null,null,null,""]
[null,null,null,"",null,null,null,null,null,null,null,null,null,null,null,null,null,null,null,null,"",null,null,null,null,""]
[null,null,null,"",null,null,null,null,null,null,null,null,null,null,null,null,null,null,null,null,"",null,null,null,null,""]
[null,null,null,"",null,null,null,null,null,null,null,null,null,null,null,null,null,null,null,null,"",null,null,null,null,""]
[null,null,null,"",null,null,null,null,null,null,null,null,null,null,null,null,null,null,null,null,"",null,null,null,null,""]
[null,null,null,"",null,null,null,null,null,null,null,null,null,null,null,null,null,null,null,null,"",null,null,null,null,""]
[null,null,null,"",null,null,null,null,null,null,null,null,null,null,null,null,null,null,null,null,"",null,null,null,null,""]
[null,null,null,"",null,null,null,null,null,null,null,null,null,null,null,null,null,null,null,null,{"$f":"IF(R227=0,\"\",ROUND(P227*R227,0))","v":""},null,null,null,null,""]
[null,null,null,"",null,null,null,null,null,null,null,null,null,null,null,null,null,null,null,null,"",null,null,null,null,""]
[null,null,null,"",null,null,null,null,null,null,null,null,null,null,null,null,null,null,null,null,"",null,null,null,null,""]
[null,null,null,"",null,null,null,null,null,null,null,null,null,null,null,null,null,null,null,null,"",null,null,null,null,""]
[null,null,null,"",null,null,null,null,null,null,null,null,null,null,null,null,null,null,null,null,"",null,null,null,null,""]
[null,null,null,"",null,null,null,null,null,null,null,null,null,null,null,null,null,null,null,null,"",null,null,null,null,""]
[null,null,null,"",null,null,null,null,null,null,null,null,null,null,null,null,null,null,null,null,"",null,null,null,null,""]
[null,null,null,"",null,null,null,null,null,null,null,null,null,null,null,null,null,null,null,null,"",null,null,null,null,""]
[null,null,null,"",null,null,null,null,null,null,null,null,null,null,null,null,null,null,null,null,"",null,null,null,null,""]
[null,null,null,"",null,null,null,null,null,null,null,null,null,null,null,null,null,null,null,null,"",null,null,null,null,""]
[null,null,null,"",null,null,null,null,null,null,null,null,null,null,null,null,null,null,null,null,"",null,null,null,null,""]
[null,null,null,"",null,null,null,null,null,null,null,null,null,null,null,null,null,null,null,null,"",null,null,null,null,""]
[null,null,null,"",null,null,null,null,null,null,null,null,null,null,null,null,null,null,null,null,"",null,null,null,null,""]
[null,null,null,"",null,null,null,null,null,null,null,null,null,null,null,null,null,null,null,null,"",null,null,null,null,""]
[null,null,null,"",null,null,null,null,null,null,null,null,null,null,null,null,null,null,null,null,"",null,null,null,null,""]
[null,null,null,"",null,null,null,null,null,null,null,null,null,null,null,null,null,null,null,null,"",null,null,null,null,""]
[null,null,null,"",null,null,null,null,null,null,null,null,null,null,null,null,null,null,null,null,"",null,null,null,null,""]
[null,null,null,"",null,null,null,null,null,null,null,null,null,null,null,null,null,null,null,null,"",null,null,null,null,""]
[null,null,null,"",null,null,null,null,null,null,null,null,null,null,null,null,null,null,null,null,"",null,null,null,null,""]
[null,null,null,"",null,null,null,null,null,null,null,null,null,null,null,null,null,null,null,null,"",null,null,null,null,""]
[null,null,null,"",null,null,null,null,null,null,null,null,null,null,null,null,null,null,null,null,"",null,null,null,null,""]
[null,null,null,"",null,null,null,null,null,null,null,null,null,null,null,null,null,null,null,null,"",null,null,null,null,""]
[null,null,null,"",null,null,null,null,null,null,null,null,null,null,null,null,null,null,null,null,"",null,null,null,null,""]
[null,null,null,"",null,null,null,null,null,null,null,null,null,null,null,null,null,null,null,null,"",null,null,null,null,""]
[null,null,null,"",null,null,null,null,null,null,null,null,null,null,null,null,null,null,null,null,"",null,null,null,null,""]
[null,null,null,"",null,null,null,null,null,null,null,null,null,null,null,null,null,null,null,null,"",null,null,null,null,""]
[null,null,null,"",null,null,null,null,null,null,null,null,null,null,null,null,null,null,null,null,"",null,null,null,null,""]
[null,null,null,"",null,null,null,null,null,null,null,null,null,null,null,null,null,null,null,null,"",null,null,null,null,""]
[null,null,null,"",null,null,null,null,null,null,null,null,null,null,null,null,null,null,null,null,"",null,null,null,null,""]
[null,null,null,"",null,null,null,null,null,null,null,null,null,null,null,null,null,null,null,null,"",null,null,null,null,""]
[null,null,null,"",null,null,null,null,null,null,null,null,null,null,null,null,null,null,null,null,"",null,null,null,null,""]
[null,null,null,"",null,null,null,null,null,null,null,null,null,null,null,null,null,null,null,null,"",null,null,null,null,""]
[null,null,null,"",null,null,null,null,null,null,null,null,null,null,null,null,null,null,null,null,"",null,null,null,null,""]
[null,null,null,"",null,null,null,null,null,null,null,null,null,null,null,null,null,null,null,null,"",null,null,null,null,""]
[null,null,null,"",null,null,null,null,null,null,null,null,null,null,null,null,null,null,null,null,"",null,null,null,null,{"$f":"IF(U261=\"\",\"\",IF(SUM(A$5:A$1048576)=0,\"\",IF(A261=0,\"コード入力\",\"\")))","v":""}]
[null,null,null,{"$f":"IF(E262=\"\",\"\",\"～\")","v":""},null,null,null,null,null,null,null,null,null,null,null,null,null,null,null,null,"",null,null,null,null,""]
[null,null,null,"",null,null,null,null,null,null,null,null,null,null,null,null,null,null,null,null,"",null,null,null,null,""]
[null,null,null,"",null,null,null,null,null,null,null,null,null,null,null,null,null,null,null,null,"",null,null,null,null,""]
[null,null,null,"",null,null,null,null,null,null,null,null,null,null,null,null,null,null,null,null,"",null,null,null,null,""]
[null,null,null,"",null,null,null,null,null,null,null,null,null,null,null,null,null,null,null,null,"",null,null,null,null,""]
[null,null,null,"",null,null,null,null,null,null,null,null,null,null,null,null,null,null,null,null,"",null,null,null,null,""]
[null,null,null,"",null,null,null,null,null,null,null,null,null,null,null,null,null,null,null,null,"",null,null,null,null,""]
[null,null,null,"",null,null,null,null,null,null,null,null,null,null,null,null,null,null,null,null,"",null,null,null,null,""]
[null,null,null,"",null,null,null,null,null,null,null,null,null,null,null,null,null,null,null,null,"",null,null,null,null,""]
[null,null,null,"",null,null,null,null,null,null,null,null,null,null,null,null,null,null,null,null,"",null,null,null,null,""]
[null,null,null,"",null,null,null,null,null,null,null,null,null,null,null,null,null,null,null,null,"",null,null,null,null,""]
[null,null,null,"",null,null,null,null,null,null,null,null,null,null,null,null,null,null,null,null,"",null,null,null,null,""]
[null,null,null,"",null,null,null,null,null,null,null,null,null,null,null,null,null,null,null,null,"",null,null,null,null,""]
[null,null,null,"",null,null,null,null,null,null,null,null,null,null,null,null,null,null,null,null,"",null,null,null,null,""]
[null,null,null,"",null,null,null,null,null,null,null,null,null,null,null,null,null,null,null,null,"",null,null,null,null,""]
[null,null,null,"",null,null,null,null,null,null,null,null,null,null,null,null,null,null,null,null,"",null,null,null,null,""]
[null,null,null,"",null,null,null,null,null,null,null,null,null,null,null,null,null,null,null,null,"",null,null,null,null,""]
[null,null,null,"",null,null,null,null,null,null,null,null,null,null,null,null,null,null,null,null,"",null,null,null,null,""]
[null,null,null,"",null,null,null,null,null,null,null,null,null,null,null,null,null,null,null,null,"",null,null,null,null,""]
[null,null,null,"",null,null,null,null,null,null,null,null,null,null,null,null,null,null,null,null,"",null,null,null,null,""]
[null,null,null,"",null,null,null,null,null,null,null,null,null,null,null,null,null,null,null,null,"",null,null,null,null,""]
[null,null,null,"",null,null,null,null,null,null,null,null,null,null,null,null,null,null,null,null,"",null,null,null,null,""]
[null,null,null,"",null,null,null,null,null,null,null,null,null,null,null,null,null,null,null,null,"",null,null,null,null,""]
[null,null,null,"",null,null,null,null,null,null,null,null,null,null,null,null,null,null,null,null,"",null,null,null,null,""]
[null,null,null,"",null,null,null,null,null,null,null,null,null,null,null,null,null,null,null,null,"",null,null,null,null,""]
[null,null,null,"",null,null,null,null,null,null,null,null,null,null,null,null,null,null,null,null,"",null,null,null,null,""]
[null,null,null,"",null,null,null,null,null,null,null,null,null,null,null,null,null,null,null,null,"",null,null,null,null,""]
[null,null,null,"",null,null,null,null,null,null,null,null,null,null,null,null,null,null,null,null,"",null,null,null,null,""]
[null,null,null,"",null,null,null,null,null,null,null,null,null,null,null,null,null,null,null,null,"",null,null,null,null,""]
[null,null,null,"",null,null,null,null,null,null,null,null,null,null,null,null,null,null,null,null,{"$f":"IF(R291=0,\"\",ROUND(P291*R291,0))","v":""},null,null,null,null,""]
[null,null,null,"",null,null,null,null,null,null,null,null,null,null,null,null,null,null,null,null,"",null,null,null,null,""]
[null,null,null,"",null,null,null,null,null,null,null,null,null,null,null,null,null,null,null,null,"",null,null,null,null,""]
[null,null,null,"",null,null,null,null,null,null,null,null,null,null,null,null,null,null,null,null,"",null,null,null,null,""]
[null,null,null,"",null,null,null,null,null,null,null,null,null,null,null,null,null,null,null,null,"",null,null,null,null,""]
[null,null,null,"",null,null,null,null,null,null,null,null,null,null,null,null,null,null,null,null,"",null,null,null,null,""]
[null,null,null,"",null,null,null,null,null,null,null,null,null,null,null,null,null,null,null,null,"",null,null,null,null,""]
[null,null,null,"",null,null,null,null,null,null,null,null,null,null,null,null,null,null,null,null,"",null,null,null,null,""]
[null,null,null,"",null,null,null,null,null,null,null,null,null,null,null,null,null,null,null,null,"",null,null,null,null,""]
[null,null,null,"",null,null,null,null,null,null,null,null,null,null,null,null,null,null,null,null,"",null,null,null,null,""]
[null,null,null,"",null,null,null,null,null,null,null,null,null,null,null,null,null,null,null,null,"",null,null,null,null,""]
[null,null,null,"",null,null,null,null,null,null,null,null,null,null,null,null,null,null,null,null,"",null,null,null,null,""]
[null,null,null,"",null,null,null,null,null,null,null,null,null,null,null,null,null,null,null,null,"",null,null,null,null,""]
[null,null,null,"",null,null,null,null,null,null,null,null,null,null,null,null,null,null,null,null,"",null,null,null,null,""]
[null,null,null,"",null,null,null,null,null,null,null,null,null,null,null,null,null,null,null,null,"",null,null,null,null,""]
[null,null,null,"",null,null,null,null,null,null,null,null,null,null,null,null,null,null,null,null,"",null,null,null,null,""]
[null,null,null,"",null,null,null,null,null,null,null,null,null,null,null,null,null,null,null,null,"",null,null,null,null,""]
[null,null,null,"",null,null,null,null,null,null,null,null,null,null,null,null,null,null,null,null,"",null,null,null,null,""]
[null,null,null,"",null,null,null,null,null,null,null,null,null,null,null,null,null,null,null,null,"",null,null,null,null,""]
[null,null,null,"",null,null,null,null,null,null,null,null,null,null,null,null,null,null,null,null,"",null,null,null,null,""]
[null,null,null,"",null,null,null,null,null,null,null,null,null,null,null,null,null,null,null,null,"",null,null,null,null,""]
[null,null,null,"",null,null,null,null,null,null,null,null,null,null,null,null,null,null,null,null,"",null,null,null,null,""]
[null,null,null,"",null,null,null,null,null,null,null,null,null,null,null,null,null,null,null,null,"",null,null,null,null,""]
[null,null,null,"",null,null,null,null,null,null,null,null,null,null,null,null,null,null,null,null,"",null,null,null,null,""]
[null,null,null,"",null,null,null,null,null,null,null,null,null,null,null,null,null,null,null,null,"",null,null,null,null,""]
[null,null,null,"",null,null,null,null,null,null,null,null,null,null,null,null,null,null,null,null,"",null,null,null,null,""]
[null,null,null,"",null,null,null,null,null,null,null,null,null,null,null,null,null,null,null,null,"",null,null,null,null,""]
[null,null,null,{"$f":"IF(E318=\"\",\"\",\"～\")","v":""},null,null,null,null,null,null,null,null,null,null,null,null,null,null,null,null,{"$f":"IF(R318=0,\"\",ROUND(P318*R318,0))","v":""},null,null,null,null,""]
[null,null,null,"",null,null,null,null,null,null,null,null,null,null,null,null,null,null,null,null,"",null,null,null,null,""]
[null,null,null,"",null,null,null,null,null,null,null,null,null,null,null,null,null,null,null,null,"",null,null,null,null,""]
[null,null,null,"",null,null,null,null,null,null,null,null,null,null,null,null,null,null,null,null,"",null,null,null,null,""]
[null,null,null,"",null,null,null,null,null,null,null,null,null,null,null,null,null,null,null,null,"",null,null,null,null,""]
[null,null,null,"",null,null,null,null,null,null,null,null,null,null,null,null,null,null,null,null,"",null,null,null,null,""]
[null,null,null,"",null,null,null,null,null,null,null,null,null,null,null,null,null,null,null,null,"",null,null,null,null,""]
[null,null,null,"",null,null,null,null,null,null,null,null,null,null,null,null,null,null,null,null,"",null,null,null,null,{"$f":"IF(U325=\"\",\"\",IF(SUM(A$5:A$1048576)=0,\"\",IF(A325=0,\"コード入力\",\"\")))","v":""}]
[null,null,null,"",null,null,null,null,null,null,null,null,null,null,null,null,null,null,null,null,"",null,null,null,null,""]
[null,null,null,"",null,null,null,null,null,null,null,null,null,null,null,null,null,null,null,null,"",null,null,null,null,""]
[null,null,null,"",null,null,null,null,null,null,null,null,null,null,null,null,null,null,null,null,"",null,null,null,null,""]
[null,null,null,"",null,null,null,null,null,null,null,null,null,null,null,null,null,null,null,null,"",null,null,null,null,""]
[null,null,null,"",null,null,null,null,null,null,null,null,null,null,null,null,null,null,null,null,"",null,null,null,null,""]
[null,null,null,"",null,null,null,null,null,null,null,null,null,null,null,null,null,null,null,null,"",null,null,null,null,""]
[null,null,null,"",null,null,null,null,null,null,null,null,null,null,null,null,null,null,null,null,"",null,null,null,null,""]
[null,null,null,"",null,null,null,null,null,null,null,null,null,null,null,null,null,null,null,null,"",null,null,null,null,""]
[null,null,null,"",null,null,null,null,null,null,null,null,null,null,null,null,null,null,null,null,"",null,null,null,null,""]
[null,null,null,"",null,null,null,null,null,null,null,null,null,null,null,null,null,null,null,null,"",null,null,null,null,""]
[null,null,null,"",null,null,null,null,null,null,null,null,null,null,null,null,null,null,null,null,"",null,null,null,null,""]
[null,null,null,"",null,null,null,null,null,null,null,null,null,null,null,null,null,null,null,null,"",null,null,null,null,""]
[null,null,null,"",null,null,null,null,null,null,null,null,null,null,null,null,null,null,null,null,"",null,null,null,null,""]
[null,null,null,"",null,null,null,null,null,null,null,null,null,null,null,null,null,null,null,null,"",null,null,null,null,""]
[null,null,null,"",null,null,null,null,null,null,null,null,null,null,null,null,null,null,null,null,"",null,null,null,null,""]
[null,null,null,"",null,null,null,null,null,null,null,null,null,null,null,null,null,null,null,null,"",null,null,null,null,""]
[null,null,null,"",null,null,null,null,null,null,null,null,null,null,null,null,null,null,null,null,"",null,null,null,null,""]
[null,null,null,"",null,null,null,null,null,null,null,null,null,null,null,null,null,null,null,null,"",null,null,null,null,""]
[null,null,null,"",null,null,null,null,null,null,null,null,null,null,null,null,null,null,null,null,"",null,null,null,null,""]
[null,null,null,"",null,null,null,null,null,null,null,null,null,null,null,null,null,null,null,null,"",null,null,null,null,""]
[null,null,null,"",null,null,null,null,null,null,null,null,null,null,null,null,null,null,null,null,"",null,null,null,null,""]
[null,null,null,"",null,null,null,null,null,null,null,null,null,null,null,null,null,null,null,null,"",null,null,null,null,""]
[null,null,null,"",null,null,null,null,null,null,null,null,null,null,null,null,null,null,null,null,"",null,null,null,null,""]
[null,null,null,"",null,null,null,null,null,null,null,null,null,null,null,null,null,null,null,null,"",null,null,null,null,""]
[null,null,null,{"$f":"IF(E350=\"\",\"\",\"～\")","v":""},null,null,null,null,null,null,null,null,null,null,null,null,null,null,null,null,{"$f":"IF(R350=0,\"\",ROUND(P350*R350,0))","v":""},null,null,null,null,""]
[null,null,null,"",null,null,null,null,null,null,null,null,null,null,null,null,null,null,null,null,"",null,null,null,null,""]
[null,null,null,"",null,null,null,null,null,null,null,null,null,null,null,null,null,null,null,null,"",null,null,null,null,""]
[null,null,null,"",null,null,null,null,null,null,null,null,null,null,null,null,null,null,null,null,"",null,null,null,null,""]
[null,null,null,"",null,null,null,null,null,null,null,null,null,null,null,null,null,null,null,null,"",null,null,null,null,""]
[null,null,null,"",null,null,null,null,null,null,null,null,null,null,null,null,null,null,null,null,"",null,null,null,null,""]
[null,null,null,"",null,null,null,null,null,null,null,null,null,null,null,null,null,null,null,null,"",null,null,null,null,""]
[null,null,null,"",null,null,null,null,null,null,null,null,null,null,null,null,null,null,null,null,"",null,null,null,null,""]
[null,null,null,"",null,null,null,null,null,null,null,null,null,null,null,null,null,null,null,null,"",null,null,null,null,""]
[null,null,null,"",null,null,null,null,null,null,null,null,null,null,null,null,null,null,null,null,"",null,null,null,null,""]
[null,null,null,"",null,null,null,null,null,null,null,null,null,null,null,null,null,null,null,null,"",null,null,null,null,""]
[null,null,null,"",null,null,null,null,null,null,null,null,null,null,null,null,null,null,null,null,"",null,null,null,null,""]
[null,null,null,"",null,null,null,null,null,null,null,null,null,null,null,null,null,null,null,null,"",null,null,null,null,""]
[null,null,null,"",null,null,null,null,null,null,null,null,null,null,null,null,null,null,null,null,"",null,null,null,null,""]
[null,null,null,"",null,null,null,null,null,null,null,null,null,null,null,null,null,null,null,null,"",null,null,null,null,""]

{"sheet":"マクロ構文（注文外）","index":3,"n_rows":22,"n_cols":9,"rows_kept":22,"cut":false,"hidden":true,"merged":[]}
["Sub 請求書用紙プルダウン対応関数復活()",null,"Sub 請求書用紙小計検索関数復活()"]
[]
["Sheets(\"請求書用紙 (注文外)\").Select",null,"Sheets(\"請求書用紙 (注文外)\").Select"]
[]
["ActiveSheet.Unprotect",null,"ActiveSheet.Unprotect"]
["  'シート保護解除",null,"  'シート保護解除"]
[]
["'摘要に数式を入力",null,"摘要に数式を入力"]
["Range(\"L17\").Formula = \"＝IFERROR(LOOKUP($E17,$BO$4:$BP$73,$BP$4:$BP$73),””\"\")",null,"Range(\"AH17\").Formula = \"=IF(SUM(内訳書!A5:A1003)=0,SUM(内訳書!U5:X1003),SUMIF(内訳書!A:A,A17,内訳書!U:X))",null,null,null,null,"Range(\"AJ17\").Formula = \"=","IF(SUM(内訳書!A5:A1003)=0,SUM(内訳書!U5:X1003),SUMIF(内訳書!A:A,A17,内訳書!U:X))"]
["Range(\"L18\").Formula = \"＝IFERROR(LOOKUP($E18,$BO$4:$BP$73,$BP$4:$BP$73),””\"\")",null,"Range(\"AH18\").Formula = \"=SUMIF(内訳書!A:A,A18,内訳書!U:X)",null,null,null,null,"Range(\"AJ18\").Formula = \"=","SUMIF(内訳書!A:A,A18,内訳書!U:X)"]
["Range(\"L19\").Formula = \"＝IFERROR(LOOKUP($E19,$BO$4:$BP$73,$BP$4:$BP$73),””\"\")",null,"Range(\"AH19\").Formula = \"=SUMIF(内訳書!A:A,A19,内訳書!U:X)",null,null,null,null,"Range(\"AJ19\").Formula = \"=","SUMIF(内訳書!A:A,A19,内訳書!U:X)"]
["Range(\"L20\").Formula = \"＝IFERROR(LOOKUP($E20,$BO$4:$BP$73,$BP$4:$BP$73),””\"\")",null,"Range(\"AH20\").Formula = \"=SUMIF(内訳書!A:A,A20,内訳書!U:X)",null,null,null,null,"Range(\"AJ20\").Formula = \"=","SUMIF(内訳書!A:A,A20,内訳書!U:X)"]
["Range(\"L21\").Formula = \"＝IFERROR(LOOKUP($E21,$BO$4:$BP$73,$BP$4:$BP$73),””\"\")",null,"Range(\"AH21\").Formula = \"=SUMIF(内訳書!A:A,A21,内訳書!U:X)",null,null,null,null,"Range(\"AJ21\").Formula = \"=","SUMIF(内訳書!A:A,A21,内訳書!U:X)"]
["Range(\"L22\").Formula = \"＝IFERROR(LOOKUP($E22,$BO$4:$BP$73,$BP$4:$BP$73),””\"\")",null,"Range(\"AH22\").Formula = \"=SUMIF(内訳書!A:A,A22,内訳書!U:X)",null,null,null,null,"Range(\"AJ22\").Formula = \"=","SUMIF(内訳書!A:A,A22,内訳書!U:X)"]
["Range(\"L23\").Formula =\"＝IFERROR(LOOKUP($E23,$BO$4:$BP$73,$BP$4:$BP$73),””\"\")",null,"Range(\"AH23\").Formula = \"=SUMIF(内訳書!A:A,A23,内訳書!U:X)",null,null,null,null,"Range(\"AJ23\").Formula = \"=","SUMIF(内訳書!A:A,A23,内訳書!U:X)"]
["Range(\"L24\").Formula = \"＝IFERROR(LOOKUP($E24,$BO$4:$BP$73,$BP$4:$BP$73),””\"\")",null,"Range(\"AH24\").Formula = \"=SUMIF(内訳書!A:A,A24,内訳書!U:X)",null,null,null,null,"Range(\"AJ24\").Formula = \"=","SUMIF(内訳書!A:A,A24,内訳書!U:X)"]
["Range(\"L25\").Formula = \"＝IFERROR(LOOKUP($E25,$BO$4:$BP$73,$BP$4:$BP$73),””\"\")",null,"Range(\"AH25\").Formula = \"=SUMIF(内訳書!A:A,A25,内訳書!U:X)",null,null,null,null,"Range(\"AJ25\").Formula = \"=","SUMIF(内訳書!A:A,A25,内訳書!U:X)"]
["Range(\"L26\").Formula = \"＝IFERROR(LOOKUP($E26,$BO$4:$BP$73,$BP$4:$BP$73),””\"\")",null,"Range(\"AH26\").Formula = \"=SUMIF(内訳書!A:A,A26,内訳書!U:X)",null,null,null,null,"Range(\"AJ26\").Formula = \"=","SUMIF(内訳書!A:A,A26,内訳書!U:X)"]
[]
["ActiveSheet.Protect",null,"ActiveSheet.Protect"]
["  'シート保護",null,"  'シート保護"]
["End Sub",null,"End Sub"]